Publisher Label,Publisher URI,"Supplier ID","Supplier","Invoice No.","Amount £","Purpose","Transaction Number","Payment Date","Organisational Unit","Cost Centre(T)","Internal Category Number"
"Wolverhampton City Council","http://opendatacommunities.org/id/metropolitan-district-council/wolverhampton","703251","Drive DeVilbiss Health Care Limited","0001229005","823.80","Equipment - Purchase","130214739","11/05/2018","Independent Living Service","Independent Living Service","R4000"
"Wolverhampton City Council","http://opendatacommunities.org/id/metropolitan-district-council/wolverhampton","703251","Drive DeVilbiss Health Care Limited","0001229005","719.50","Equipment - Purchase","130214739","11/05/2018","Independent Living Service","Independent Living Service","R4000"
"Wolverhampton City Council","http://opendatacommunities.org/id/metropolitan-district-council/wolverhampton","703251","Drive DeVilbiss Health Care Limited","0001229005","197.00","Equipment - Purchase","130214739","11/05/2018","Independent Living Service","Independent Living Service","R4000"
"Wolverhampton City Council","http://opendatacommunities.org/id/metropolitan-district-council/wolverhampton","703251","Drive DeVilbiss Health Care Limited","0001229005","942.50","Equipment - Purchase","130214739","11/05/2018","Independent Living Service","Independent Living Service","R4000"
"Wolverhampton City Council","http://opendatacommunities.org/id/metropolitan-district-council/wolverhampton","703251","Drive DeVilbiss Health Care Limited","0001229005","1,035.00","Equipment - Purchase","130214739","11/05/2018","Independent Living Service","Independent Living Service","R4000"
"Wolverhampton City Council","http://opendatacommunities.org/id/metropolitan-district-council/wolverhampton","703251","Drive DeVilbiss Health Care Limited","0001231221","350.00","Equipment - Purchase","130215371","23/05/2018","Independent Living Service","Independent Living Service","R4000"
"Wolverhampton City Council","http://opendatacommunities.org/id/metropolitan-district-council/wolverhampton","703251","Drive DeVilbiss Health Care Limited","0001231221","580.00","Equipment - Purchase","130215371","23/05/2018","Independent Living Service","Independent Living Service","R4000"
"Wolverhampton City Council","http://opendatacommunities.org/id/metropolitan-district-council/wolverhampton","703251","Drive DeVilbiss Health Care Limited","0001233433","8,250.00","Equipment - Purchase","130215941","30/05/2018","Independent Living Service","Independent Living Service","R4000"
"Wolverhampton City Council","http://opendatacommunities.org/id/metropolitan-district-council/wolverhampton","703251","Drive DeVilbiss Health Care Limited","0001227576","8,250.00","Equipment - Purchase","130214999","30/05/2018","Independent Living Service","Independent Living Service","R4000"
"Wolverhampton City Council","http://opendatacommunities.org/id/metropolitan-district-council/wolverhampton","703251","Drive DeVilbiss Health Care Limited","0001233434","8,250.00","Equipment - Purchase","130215942","23/05/2018","Independent Living Service","Independent Living Service","R4000"
"Wolverhampton City Council","http://opendatacommunities.org/id/metropolitan-district-council/wolverhampton","703254","Drs Cowen Manley And Guest","FOS4074","120.00","Services - Professional Fees","190455506","11/05/2018","Looked After Children","Fostering Team & Allowances","R4400"
"Wolverhampton City Council","http://opendatacommunities.org/id/metropolitan-district-council/wolverhampton","703258","Drs Kehler & Naz","FOS4080","135.20","Services - Professional Fees","190455512","11/05/2018","Looked After Children","Fostering Team & Allowances","R4400"
"Wolverhampton City Council","http://opendatacommunities.org/id/metropolitan-district-council/wolverhampton","703258","Drs Kehler & Naz","FOS4079","135.20","Services - Professional Fees","190455511","11/05/2018","Looked After Children","Fostering Team & Allowances","R4400"
"Wolverhampton City Council","http://opendatacommunities.org/id/metropolitan-district-council/wolverhampton","703260","Drs R Bilas & A Thomas","FOS4085","70.00","Services - Professional Fees","190455517","11/05/2018","Looked After Children","Fostering Team & Allowances","R4400"
"Wolverhampton City Council","http://opendatacommunities.org/id/metropolitan-district-council/wolverhampton","703269","D-Tox","350864","79.28","Room Hire","130215000","25/05/2018","Facilities Management","Hickman Avenue Depot","R2201"
"Wolverhampton City Council","http://opendatacommunities.org/id/metropolitan-district-council/wolverhampton","703269","D-Tox","347656","73.08","Room Hire","130216689","23/05/2018","Facilities Management","Hickman Avenue Depot","R2201"
"Wolverhampton City Council","http://opendatacommunities.org/id/metropolitan-district-council/wolverhampton","703269","D-Tox","350865","79.28","Room Hire","130215001","25/05/2018","Facilities Management","Culwell Street Depot","R2201"
"Wolverhampton City Council","http://opendatacommunities.org/id/metropolitan-district-council/wolverhampton","703275","Dudley M B C","20026404491284","3,815.67","TPP - Payments to Local Authorities","130213149","09/05/2018","Public Service Reform","General Elections","R5100"
"Wolverhampton City Council","http://opendatacommunities.org/id/metropolitan-district-council/wolverhampton","703278","Dudley M.B.C.","Refund super levies 17/18","4,738.50","Enhanced Pension","190454003","04/05/2018","Central Corporate Budgets","Local Government Reorganisation","R1301"
"Wolverhampton City Council","http://opendatacommunities.org/id/metropolitan-district-council/wolverhampton","703303","DWP (Dept For Work & Pensions)","My ref: TP160185/ER Your ref: HXS-082","665.00","Insurance - General","190459268","18/05/2018","Audit Services","Legal Liability","R4962"
"Wolverhampton City Council","http://opendatacommunities.org/id/metropolitan-district-council/wolverhampton","703303","DWP (Dept For Work & Pensions)","TP140146/LG CJM-391","829.00","Insurance - General","190455739","11/05/2018","Audit Services","Legal Liability","R4962"
"Wolverhampton City Council","http://opendatacommunities.org/id/metropolitan-district-council/wolverhampton","703307","Dx Network Services Limited","81796168","3,727.41","Subscriptions","130214740","23/05/2018","Legal Services","Legal Services","R4701"
"Wolverhampton City Council","http://opendatacommunities.org/id/metropolitan-district-council/wolverhampton","703307","Dx Network Services Limited","81801071","100.00","Books","130214923","25/05/2018","Strategic Organisation Development","Global Budgets","R4309"
"Wolverhampton City Council","http://opendatacommunities.org/id/metropolitan-district-council/wolverhampton","703318","E A Derry","865","1,844.34","Cleaning Supplies and Materials","130215203","25/05/2018","Environmental Maintenance","Ground Maintenance East","R2705"
"Wolverhampton City Council","http://opendatacommunities.org/id/metropolitan-district-council/wolverhampton","703332","E.On (Metering Services Only!!)","7124908","195.00","Electricity","190460858","23/05/2018","Corporate Asset Management","Central Utilities to Recharge","R2100"
"Wolverhampton City Council","http://opendatacommunities.org/id/metropolitan-district-council/wolverhampton","703334","E.On(Consumption Of Gas/Elec Units).","H15A6C6F4E","23.24","Electricity","190453047","02/05/2018","Corporate Asset Management","Central Utilities to Recharge","R2100"
"Wolverhampton City Council","http://opendatacommunities.org/id/metropolitan-district-council/wolverhampton","703334","E.On(Consumption Of Gas/Elec Units).","H15C6572A6","24.89","Electricity","190460859","23/05/2018","Corporate Asset Management","Central Utilities to Recharge","R2100"
"Wolverhampton City Council","http://opendatacommunities.org/id/metropolitan-district-council/wolverhampton","703334","E.On(Consumption Of Gas/Elec Units).","015280602730 3 Bingley Street WV3 0HS","248.85","No Recourse to Public Funds","190462593","25/05/2018","Child Protection","Childrens with Disabilities Team","R6314"
"Wolverhampton City Council","http://opendatacommunities.org/id/metropolitan-district-council/wolverhampton","703334","E.On(Consumption Of Gas/Elec Units).","H15ACD0BA5","43.27","Electricity","190455733","11/05/2018","City Development","Southside","R2100"
"Wolverhampton City Council","http://opendatacommunities.org/id/metropolitan-district-council/wolverhampton","703339","Eagle Music (Jim Duncan)","284","600.00","Marketing \ Non-staff advertising","130214742","02/05/2018","Visitor Economy","Civic Halls Non-Direct Event Management Account","R4317"
"Wolverhampton City Council","http://opendatacommunities.org/id/metropolitan-district-council/wolverhampton","703339","Eagle Music (Jim Duncan)","284","100.00","Hire of Vehicles","130214742","02/05/2018","Visitor Economy","Civic Halls Non-Direct Event Management Account","R3200"
"Wolverhampton City Council","http://opendatacommunities.org/id/metropolitan-district-council/wolverhampton","703339","Eagle Music (Jim Duncan)","285","600.00","Marketing \ Non-staff advertising","130213518","25/05/2018","Visitor Economy","Civic Halls Non-Direct Event Management Account","R4317"
"Wolverhampton City Council","http://opendatacommunities.org/id/metropolitan-district-council/wolverhampton","703339","Eagle Music (Jim Duncan)","285","100.00","Hire of Vehicles","130213518","25/05/2018","Visitor Economy","Civic Halls Non-Direct Event Management Account","R3200"
"Wolverhampton City Council","http://opendatacommunities.org/id/metropolitan-district-council/wolverhampton","703339","Eagle Music (Jim Duncan)","283","600.00","Marketing \ Non-staff advertising","130214741","02/05/2018","Visitor Economy","Civic Halls Non-Direct Event Management Account","R4317"
"Wolverhampton City Council","http://opendatacommunities.org/id/metropolitan-district-council/wolverhampton","703339","Eagle Music (Jim Duncan)","283","100.00","Hire of Vehicles","130214741","02/05/2018","Visitor Economy","Civic Halls Non-Direct Event Management Account","R3200"
"Wolverhampton City Council","http://opendatacommunities.org/id/metropolitan-district-council/wolverhampton","703340","Eagle Supplies Limited","20218","16.75","Equipment - Purchase","190458184","16/05/2018","Fleet Services","Fleet Management","R4000"
"Wolverhampton City Council","http://opendatacommunities.org/id/metropolitan-district-council/wolverhampton","703340","Eagle Supplies Limited","20218","61.50","Equipment - Purchase","190458184","16/05/2018","Fleet Services","Fleet Management","R4000"
"Wolverhampton City Council","http://opendatacommunities.org/id/metropolitan-district-council/wolverhampton","703340","Eagle Supplies Limited","20290","16.75","Equipment - Purchase","190461321","23/05/2018","Fleet Services","Fleet Management","R4000"
"Wolverhampton City Council","http://opendatacommunities.org/id/metropolitan-district-council/wolverhampton","703371","Eclipse Access Solutions Limited","0012772","120.00","Construction and Conversion","130213150","30/05/2018","-","Adaptations for People with Disabilites","C1100"
"Wolverhampton City Council","http://opendatacommunities.org/id/metropolitan-district-council/wolverhampton","703371","Eclipse Access Solutions Limited","0012785","375.00","Adaptations","130216919","30/05/2018","Independent Living Service","Independent Living Service","R4411"
"Wolverhampton City Council","http://opendatacommunities.org/id/metropolitan-district-council/wolverhampton","703371","Eclipse Access Solutions Limited","0012773","7,198.00","Construction and Conversion","130213151","09/05/2018","-","Adaptations for People with Disabilites","C1100"
"Wolverhampton City Council","http://opendatacommunities.org/id/metropolitan-district-council/wolverhampton","703371","Eclipse Access Solutions Limited","17/0651/SAG","4,689.00","Grants paid out to other organisations","190457781","16/05/2018","-","Disabled Facilities Grants","C5011"
"Wolverhampton City Council","http://opendatacommunities.org/id/metropolitan-district-council/wolverhampton","703377","Eden Brown Limited","1156774","493.44","Agency Staff","130213519","16/05/2018","Emergency Duty Team","Emergency Duty Team","R1100"
"Wolverhampton City Council","http://opendatacommunities.org/id/metropolitan-district-council/wolverhampton","703395","Edmundson Electrical Limited","019-049193","59.99","Materials","130213955","16/05/2018","Maintenance Programme","Civic Centre Repairs & Maintenance","R4007"
"Wolverhampton City Council","http://opendatacommunities.org/id/metropolitan-district-council/wolverhampton","703395","Edmundson Electrical Limited","230-332914","20.05","Cleaning Supplies and Materials","130216920","30/05/2018","Strategic Organisation Development","Global Budgets","R2705"
"Wolverhampton City Council","http://opendatacommunities.org/id/metropolitan-district-council/wolverhampton","703395","Edmundson Electrical Limited","019-046616","22.57","Materials","130213152","02/05/2018","Maintenance Programme","Civic Centre Repairs & Maintenance","R4007"
"Wolverhampton City Council","http://opendatacommunities.org/id/metropolitan-district-council/wolverhampton","703395","Edmundson Electrical Limited","019-050720","92.96","Materials","130214615","23/05/2018","Maintenance Programme","Civic Centre Repairs & Maintenance","R4007"
"Wolverhampton City Council","http://opendatacommunities.org/id/metropolitan-district-council/wolverhampton","703395","Edmundson Electrical Limited","019-049499","74.17","Materials","130214410","16/05/2018","Maintenance Programme","Civic Centre Repairs & Maintenance","R4007"
"Wolverhampton City Council","http://opendatacommunities.org/id/metropolitan-district-council/wolverhampton","703395","Edmundson Electrical Limited","019-046617","149.50","Materials","130213153","02/05/2018","Maintenance Programme","Civic Centre Repairs & Maintenance","R4007"
"Wolverhampton City Council","http://opendatacommunities.org/id/metropolitan-district-council/wolverhampton","703395","Edmundson Electrical Limited","230-332865","80.19","Cleaning Supplies and Materials","130214743","25/05/2018","Strategic Organisation Development","Global Budgets","R2705"
"Wolverhampton City Council","http://opendatacommunities.org/id/metropolitan-district-council/wolverhampton","703395","Edmundson Electrical Limited","019-049440","11.55","Materials","130214409","16/05/2018","Maintenance Programme","Civic Centre Repairs & Maintenance","R4007"
"Wolverhampton City Council","http://opendatacommunities.org/id/metropolitan-district-council/wolverhampton","703395","Edmundson Electrical Limited","019-046615","7.40","Materials","130213954","02/05/2018","Maintenance Programme","Civic Centre Repairs & Maintenance","R4007"
"Wolverhampton City Council","http://opendatacommunities.org/id/metropolitan-district-council/wolverhampton","703395","Edmundson Electrical Limited","019-046900","4.06","Materials","130213154","02/05/2018","Maintenance Programme","Civic Centre Repairs & Maintenance","R4007"
"Wolverhampton City Council","http://opendatacommunities.org/id/metropolitan-district-council/wolverhampton","703395","Edmundson Electrical Limited","019-051555","68.49","Materials","130215787","25/05/2018","Maintenance Programme","Civic Centre Repairs & Maintenance","R4007"
"Wolverhampton City Council","http://opendatacommunities.org/id/metropolitan-district-council/wolverhampton","703395","Edmundson Electrical Limited","019-049138","35.00","Materials","130214614","16/05/2018","Maintenance Programme","Civic Centre Repairs & Maintenance","R4007"
"Wolverhampton City Council","http://opendatacommunities.org/id/metropolitan-district-council/wolverhampton","703444","Veriserv Limited","104941","127.44","R&M - Departmental planned (external)","130215689","16/05/2018","Maintenance Programme","Centralised R&M","R2001"
"Wolverhampton City Council","http://opendatacommunities.org/id/metropolitan-district-council/wolverhampton","703444","Veriserv Limited","104876","459.02","R&M - Departmental planned (external)","130215372","09/05/2018","Maintenance Programme","Centralised R&M","R2001"
"Wolverhampton City Council","http://opendatacommunities.org/id/metropolitan-district-council/wolverhampton","703444","Veriserv Limited","104851","24.50","R&M - Departmental planned (external)","130214745","02/05/2018","Maintenance Programme","Centralised R&M","R2001"
"Wolverhampton City Council","http://opendatacommunities.org/id/metropolitan-district-council/wolverhampton","703444","Veriserv Limited","104848","143.37","R&M - Departmental planned (external)","130214744","02/05/2018","Maintenance Programme","Centralised R&M","R2001"
"Wolverhampton City Council","http://opendatacommunities.org/id/metropolitan-district-council/wolverhampton","703444","Veriserv Limited","104853","50.74","R&M - Departmental planned (external)","130214746","02/05/2018","Maintenance Programme","Centralised R&M","R2001"
"Wolverhampton City Council","http://opendatacommunities.org/id/metropolitan-district-council/wolverhampton","703444","Veriserv Limited","105032","24.50","R&M - Departmental planned (external)","130217064","25/05/2018","Maintenance Programme","Centralised R&M","R2001"
"Wolverhampton City Council","http://opendatacommunities.org/id/metropolitan-district-council/wolverhampton","703444","Veriserv Limited","104940","24.50","R&M - Departmental planned (external)","130215688","16/05/2018","Maintenance Programme","Centralised R&M","R2001"
"Wolverhampton City Council","http://opendatacommunities.org/id/metropolitan-district-council/wolverhampton","703444","Veriserv Limited","104982","46.61","R&M - Departmental planned (external)","130215788","16/05/2018","Maintenance Programme","Centralised R&M","R2001"
"Wolverhampton City Council","http://opendatacommunities.org/id/metropolitan-district-council/wolverhampton","703457","Elliott Group Limited","15293245","190.08","Hire of Plant","130214747","23/05/2018","Environmental Maintenance","Ground Maintenance West","R3201"
"Wolverhampton City Council","http://opendatacommunities.org/id/metropolitan-district-council/wolverhampton","703457","Elliott Group Limited","15301400","67.15","Hire of Plant","130215521","30/05/2018","Environmental Maintenance","Ground Maintenance West","R3201"
"Wolverhampton City Council","http://opendatacommunities.org/id/metropolitan-district-council/wolverhampton","703472","EMB Excellence Limited","0000014972","2,907.08","Services - Professional Fees","130216921","23/05/2018","Catering","Education Catering - General Overheads","R4400"
"Wolverhampton City Council","http://opendatacommunities.org/id/metropolitan-district-council/wolverhampton","703472","EMB Excellence Limited","0000014972","2,907.08","Services - Professional Fees","130216921","23/05/2018","Facilities Management","Civic Centre","R4400"
"Wolverhampton City Council","http://opendatacommunities.org/id/metropolitan-district-council/wolverhampton","703472","EMB Excellence Limited","0000014972","2,907.95","Services - Professional Fees","130216921","23/05/2018","Cleaning","Cleaning of Buildings - General","R4400"
"Wolverhampton City Council","http://opendatacommunities.org/id/metropolitan-district-council/wolverhampton","703481","Empower Housing Association Limited","FIR02630518RM1","1,140.76","Rent","130212753","18/05/2018","Learning Disabilities Care Purchasing","LD Care Purchasing (Spot Placements)","R2200"
"Wolverhampton City Council","http://opendatacommunities.org/id/metropolitan-district-council/wolverhampton","703481","Empower Housing Association Limited","FIR01700518RM3","1,133.52","Rent","130212752","23/05/2018","Learning Disabilities Care Purchasing","LD Care Purchasing (Spot Placements)","R2200"
"Wolverhampton City Council","http://opendatacommunities.org/id/metropolitan-district-council/wolverhampton","703481","Empower Housing Association Limited","FIR01700418RM3","1,416.90","Rent","130209391","23/05/2018","Learning Disabilities Care Purchasing","LD Care Purchasing (Spot Placements)","R2200"
"Wolverhampton City Council","http://opendatacommunities.org/id/metropolitan-district-council/wolverhampton","703481","Empower Housing Association Limited","FIR02630418RM1","1,425.95","Rent","130209392","23/05/2018","Learning Disabilities Care Purchasing","LD Care Purchasing (Spot Placements)","R2200"
"Wolverhampton City Council","http://opendatacommunities.org/id/metropolitan-district-council/wolverhampton","703482","Empty Homes Network","180026A","95.00","Subscriptions","130216099","30/05/2018","Housing","Private Sector Housing","R4701"
"Wolverhampton City Council","http://opendatacommunities.org/id/metropolitan-district-council/wolverhampton","703504","Enterprise Managed Services Limited","90671766","1,598.56","TPP - Waste Disposal","130213326","09/05/2018","Facilities Management","Civic Centre","R5003"
"Wolverhampton City Council","http://opendatacommunities.org/id/metropolitan-district-council/wolverhampton","703504","Enterprise Managed Services Limited","90678506","9,227.47","TPP - Waste Disposal","130214750","25/05/2018","Waste and Recycling Service","Waste Disposal - General","R5003"
"Wolverhampton City Council","http://opendatacommunities.org/id/metropolitan-district-council/wolverhampton","703504","Enterprise Managed Services Limited","90671764","1,583.79","TPP - Waste Disposal","130213703","09/05/2018","Markets","Wolverhampton Indoor and Open Market","R5003"
"Wolverhampton City Council","http://opendatacommunities.org/id/metropolitan-district-council/wolverhampton","703504","Enterprise Managed Services Limited","0090672819","368.94","Refuse Collection","130214616","16/05/2018","Visitor Economy","Art Gallery","R2704"
"Wolverhampton City Council","http://opendatacommunities.org/id/metropolitan-district-council/wolverhampton","703504","Enterprise Managed Services Limited","0090679111","462.15","TPP - Waste Disposal","130215692","30/05/2018","Markets","Wednesfield Street Market","R5003"
"Wolverhampton City Council","http://opendatacommunities.org/id/metropolitan-district-council/wolverhampton","703504","Enterprise Managed Services Limited","0090677686","462.15","TPP - Waste Disposal","130214749","23/05/2018","Markets","Wednesfield Street Market","R5003"
"Wolverhampton City Council","http://opendatacommunities.org/id/metropolitan-district-council/wolverhampton","703504","Enterprise Managed Services Limited","90671762","365.00","TPP - Waste Disposal","130213325","09/05/2018","Facilities Management","Civic Centre","R5003"
"Wolverhampton City Council","http://opendatacommunities.org/id/metropolitan-district-council/wolverhampton","703504","Enterprise Managed Services Limited","90679313","691,665.00","TPP - Waste Disposal","130216156","30/05/2018","Waste and Recycling Service","Waste Collection and Recycling Service - General","R5003"
"Wolverhampton City Council","http://opendatacommunities.org/id/metropolitan-district-council/wolverhampton","703504","Enterprise Managed Services Limited","0090677685","1,222.13","TPP - Waste Disposal","130214748","23/05/2018","Markets","Bilston Market and Licensed Operations","R5003"
"Wolverhampton City Council","http://opendatacommunities.org/id/metropolitan-district-council/wolverhampton","703504","Enterprise Managed Services Limited","0090674251","226.98","TPP - Waste Disposal","130215944","16/05/2018","Early Intervention","EIP Locality 8 � Children�s Village","R5003"
"Wolverhampton City Council","http://opendatacommunities.org/id/metropolitan-district-council/wolverhampton","703504","Enterprise Managed Services Limited","90671760","7,416.88","TPP - Waste Disposal","130213324","09/05/2018","Markets","Wholesale Market Facilities Management","R5003"
"Wolverhampton City Council","http://opendatacommunities.org/id/metropolitan-district-council/wolverhampton","703504","Enterprise Managed Services Limited","90670680","4,891.28","TPP - Waste Disposal","130211777","02/05/2018","Waste and Recycling Service","Waste Collection and Recycling Service - General","R5003"
"Wolverhampton City Council","http://opendatacommunities.org/id/metropolitan-district-council/wolverhampton","703504","Enterprise Managed Services Limited","90670827","691,665.00","TPP - Waste Disposal","130211996","02/05/2018","Waste and Recycling Service","Waste Collection and Recycling Service - General","R5003"
"Wolverhampton City Council","http://opendatacommunities.org/id/metropolitan-district-council/wolverhampton","703504","Enterprise Managed Services Limited","0090679110","1,222.13","TPP - Waste Disposal","130215691","30/05/2018","Markets","Bilston Market and Licensed Operations","R5003"
"Wolverhampton City Council","http://opendatacommunities.org/id/metropolitan-district-council/wolverhampton","703516","Environmental Solutions Midlands Limited","INV-4179","9,700.00","Construction and Conversion","130213520","09/05/2018","-","Capital Maintenance - Heating Pipework Upgrades","C1100"
"Wolverhampton City Council","http://opendatacommunities.org/id/metropolitan-district-council/wolverhampton","703523","Epos Group","INV053215","300.00","Services - Professional Fees","130214751","16/05/2018","Adult Education","ICT Services","R4400"
"Wolverhampton City Council","http://opendatacommunities.org/id/metropolitan-district-council/wolverhampton","703531","Ergo-Ike Limited","17,078","1,460.00","Equipment - Purchase","130214255","30/05/2018","Independent Living Service","Independent Living Service","R4000"
"Wolverhampton City Council","http://opendatacommunities.org/id/metropolitan-district-council/wolverhampton","703536","Esendex Limited","14658072","120.00","Comms - Mobile Telephones","130215002","25/05/2018","Public Service Reform","Electoral Registration","R4507"
"Wolverhampton City Council","http://opendatacommunities.org/id/metropolitan-district-council/wolverhampton","703543","ESRI (UK)Limited","UK-SIN009538","11,040.00","Computing - Purchase of Software","130211998","16/05/2018","ICTS","Strategic ICTS (ICT Service Budget)","R4531"
"Wolverhampton City Council","http://opendatacommunities.org/id/metropolitan-district-council/wolverhampton","703543","ESRI (UK)Limited","UK-SIN009537","2,130.00","Training Expenses","130211997","02/05/2018","School Planning & Resources","Pupil & Student Support","R1650"
"Wolverhampton City Council","http://opendatacommunities.org/id/metropolitan-district-council/wolverhampton","703560","Euro Food Brands Limited","IN00758650","304.76","Provisions (Resale)","130215523","30/05/2018","Visitor Economy","Bantock - Tea Rooms","R4102"
"Wolverhampton City Council","http://opendatacommunities.org/id/metropolitan-district-council/wolverhampton","703560","Euro Food Brands Limited","IN00751815","331.61","Provisions (Resale)","130212925","02/05/2018","Visitor Economy","Art Gallery Tea Room","R4102"
"Wolverhampton City Council","http://opendatacommunities.org/id/metropolitan-district-council/wolverhampton","703560","Euro Food Brands Limited","IN00755281","277.23","Provisions (Resale)","130214619","16/05/2018","Visitor Economy","Bantock - Tea Rooms","R4102"
"Wolverhampton City Council","http://opendatacommunities.org/id/metropolitan-district-council/wolverhampton","703575","Evac+Chair International Limited","PRO035168","145.00","Equipment - R & M","130216443","23/05/2018","Learning Disability Provider","City Links","R4003"
"Wolverhampton City Council","http://opendatacommunities.org/id/metropolitan-district-council/wolverhampton","703575","Evac+Chair International Limited","INV107603","4,110.00","Equipment - Purchase","130217065","30/05/2018","Facilities Management","i10 Facilities Management","R4000"
"Wolverhampton City Council","http://opendatacommunities.org/id/metropolitan-district-council/wolverhampton","703575","Evac+Chair International Limited","INV107331","90.00","Equipment - R & M","130216207","23/05/2018","Learning Disability Provider","City Links","R4003"
"Wolverhampton City Council","http://opendatacommunities.org/id/metropolitan-district-council/wolverhampton","703575","Evac+Chair International Limited","INV107331","55.00","Equipment - R & M","130216207","23/05/2018","Learning Disability Provider","City Links","R4003"
"Wolverhampton City Council","http://opendatacommunities.org/id/metropolitan-district-council/wolverhampton","703575","Evac+Chair International Limited","INV107652","4,110.00","Equipment - Purchase","130217258","30/05/2018","Facilities Management","i10 Facilities Management","R4000"
"Wolverhampton City Council","http://opendatacommunities.org/id/metropolitan-district-council/wolverhampton","703576","Evans Halshaw Ford","242642","241.25","Services - Professional Fees","190456502","11/05/2018","Fleet Services","Fleet Management","R4400"
"Wolverhampton City Council","http://opendatacommunities.org/id/metropolitan-district-council/wolverhampton","703576","Evans Halshaw Ford","242642","122.29","Services - Professional Fees","190456502","11/05/2018","Fleet Services","Fleet Management","R4400"
"Wolverhampton City Council","http://opendatacommunities.org/id/metropolitan-district-council/wolverhampton","703576","Evans Halshaw Ford","242642","63.75","Services - Professional Fees","190456502","11/05/2018","Fleet Services","Fleet Management","R4400"
"Wolverhampton City Council","http://opendatacommunities.org/id/metropolitan-district-council/wolverhampton","703576","Evans Halshaw Ford","242642","6.78","Services - Professional Fees","190456502","11/05/2018","Fleet Services","Fleet Management","R4400"
"Wolverhampton City Council","http://opendatacommunities.org/id/metropolitan-district-council/wolverhampton","703576","Evans Halshaw Ford","242642","143.13","Services - Professional Fees","190456502","11/05/2018","Fleet Services","Fleet Management","R4400"
"Wolverhampton City Council","http://opendatacommunities.org/id/metropolitan-district-council/wolverhampton","703576","Evans Halshaw Ford","939369","37.04","Equipment - Purchase","190461340","23/05/2018","Fleet Services","Fleet Management","R4000"
"Wolverhampton City Council","http://opendatacommunities.org/id/metropolitan-district-council/wolverhampton","703576","Evans Halshaw Ford","939369","107.54","Equipment - Purchase","190461340","23/05/2018","Fleet Services","Fleet Management","R4000"
"Wolverhampton City Council","http://opendatacommunities.org/id/metropolitan-district-council/wolverhampton","703576","Evans Halshaw Ford","242747","0.50","Services - Professional Fees","190455244","09/05/2018","Fleet Services","Fleet Management","R4400"
"Wolverhampton City Council","http://opendatacommunities.org/id/metropolitan-district-council/wolverhampton","703576","Evans Halshaw Ford","242747","172.50","Services - Professional Fees","190455244","09/05/2018","Fleet Services","Fleet Management","R4400"
"Wolverhampton City Council","http://opendatacommunities.org/id/metropolitan-district-council/wolverhampton","703576","Evans Halshaw Ford","242747","404.68","Services - Professional Fees","190455244","09/05/2018","Fleet Services","Fleet Management","R4400"
"Wolverhampton City Council","http://opendatacommunities.org/id/metropolitan-district-council/wolverhampton","703576","Evans Halshaw Ford","242747","232.59","Services - Professional Fees","190455244","09/05/2018","Fleet Services","Fleet Management","R4400"
"Wolverhampton City Council","http://opendatacommunities.org/id/metropolitan-district-council/wolverhampton","703576","Evans Halshaw Ford","937779","22.37","Equipment - Purchase","190456486","11/05/2018","Fleet Services","Fleet Management","R4000"
"Wolverhampton City Council","http://opendatacommunities.org/id/metropolitan-district-council/wolverhampton","703576","Evans Halshaw Ford","937779","22.69","Equipment - Purchase","190456486","11/05/2018","Fleet Services","Fleet Management","R4000"
"Wolverhampton City Council","http://opendatacommunities.org/id/metropolitan-district-council/wolverhampton","703576","Evans Halshaw Ford","937779","23.48","Equipment - Purchase","190456486","11/05/2018","Fleet Services","Fleet Management","R4000"
"Wolverhampton City Council","http://opendatacommunities.org/id/metropolitan-district-council/wolverhampton","703576","Evans Halshaw Ford","940620","58.47","Equipment - Purchase","190462872","25/05/2018","Fleet Services","Fleet Management","R4000"
"Wolverhampton City Council","http://opendatacommunities.org/id/metropolitan-district-council/wolverhampton","703576","Evans Halshaw Ford","941370","118.41","Equipment - Purchase","190462873","25/05/2018","Fleet Services","Fleet Management","R4000"
"Wolverhampton City Council","http://opendatacommunities.org/id/metropolitan-district-council/wolverhampton","703576","Evans Halshaw Ford","941370","152.95","Equipment - Purchase","190462873","25/05/2018","Fleet Services","Fleet Management","R4000"
"Wolverhampton City Council","http://opendatacommunities.org/id/metropolitan-district-council/wolverhampton","703576","Evans Halshaw Ford","938664","44.90","Equipment - Purchase","190458197","16/05/2018","Fleet Services","Fleet Management","R4000"
"Wolverhampton City Council","http://opendatacommunities.org/id/metropolitan-district-council/wolverhampton","703576","Evans Halshaw Ford","241979","247.73","Services - Professional Fees","190456501","11/05/2018","Fleet Services","Fleet Management","R4400"
"Wolverhampton City Council","http://opendatacommunities.org/id/metropolitan-district-council/wolverhampton","703576","Evans Halshaw Ford","241979","171.00","Services - Professional Fees","190456501","11/05/2018","Fleet Services","Fleet Management","R4400"
"Wolverhampton City Council","http://opendatacommunities.org/id/metropolitan-district-council/wolverhampton","703576","Evans Halshaw Ford","940478","44.85","Equipment - Purchase","190462871","25/05/2018","Fleet Services","Fleet Management","R4000"
"Wolverhampton City Council","http://opendatacommunities.org/id/metropolitan-district-council/wolverhampton","703576","Evans Halshaw Ford","937538","44.85","Equipment - Purchase","190455270","09/05/2018","Fleet Services","Fleet Management","R4000"
"Wolverhampton City Council","http://opendatacommunities.org/id/metropolitan-district-council/wolverhampton","703576","Evans Halshaw Ford","939001","175.26","Equipment - Purchase","190461339","23/05/2018","Fleet Services","Fleet Management","R4000"
"Wolverhampton City Council","http://opendatacommunities.org/id/metropolitan-district-council/wolverhampton","703576","Evans Halshaw Ford","939001","4.18","Equipment - Purchase","190461339","23/05/2018","Fleet Services","Fleet Management","R4000"
"Wolverhampton City Council","http://opendatacommunities.org/id/metropolitan-district-council/wolverhampton","703576","Evans Halshaw Ford","939001","8.20","Equipment - Purchase","190461339","23/05/2018","Fleet Services","Fleet Management","R4000"
"Wolverhampton City Council","http://opendatacommunities.org/id/metropolitan-district-council/wolverhampton","703576","Evans Halshaw Ford","937817","30.26","Equipment - Purchase","190458196","16/05/2018","Fleet Services","Fleet Management","R4000"
"Wolverhampton City Council","http://opendatacommunities.org/id/metropolitan-district-council/wolverhampton","703576","Evans Halshaw Ford","939584","257.75","Equipment - Purchase","190461341","23/05/2018","Fleet Services","Fleet Management","R4000"
"Wolverhampton City Council","http://opendatacommunities.org/id/metropolitan-district-council/wolverhampton","703576","Evans Halshaw Ford","940378","20.09","Equipment - Purchase","190462870","25/05/2018","Fleet Services","Fleet Management","R4000"
"Wolverhampton City Council","http://opendatacommunities.org/id/metropolitan-district-council/wolverhampton","703576","Evans Halshaw Ford","940378","17.83","Equipment - Purchase","190462870","25/05/2018","Fleet Services","Fleet Management","R4000"
"Wolverhampton City Council","http://opendatacommunities.org/id/metropolitan-district-council/wolverhampton","703576","Evans Halshaw Ford","938752","117.48","Equipment - Purchase","190458198","16/05/2018","Fleet Services","Fleet Management","R4000"
"Wolverhampton City Council","http://opendatacommunities.org/id/metropolitan-district-council/wolverhampton","703576","Evans Halshaw Ford","242746","112.50","Services - Professional Fees","190455243","09/05/2018","Fleet Services","Fleet Management","R4400"
"Wolverhampton City Council","http://opendatacommunities.org/id/metropolitan-district-council/wolverhampton","703576","Evans Halshaw Ford","242746","13.14","Services - Professional Fees","190455243","09/05/2018","Fleet Services","Fleet Management","R4400"
"Wolverhampton City Council","http://opendatacommunities.org/id/metropolitan-district-council/wolverhampton","703576","Evans Halshaw Ford","242746","168.24","Services - Professional Fees","190455243","09/05/2018","Fleet Services","Fleet Management","R4400"
"Wolverhampton City Council","http://opendatacommunities.org/id/metropolitan-district-council/wolverhampton","703576","Evans Halshaw Ford","242746","7.20","Services - Professional Fees","190455243","09/05/2018","Fleet Services","Fleet Management","R4400"
"Wolverhampton City Council","http://opendatacommunities.org/id/metropolitan-district-council/wolverhampton","703576","Evans Halshaw Ford","938502","40.68","Protective Clothing","190455272","09/05/2018","Fleet Services","Fleet Management","R4200"
"Wolverhampton City Council","http://opendatacommunities.org/id/metropolitan-district-council/wolverhampton","703576","Evans Halshaw Ford","243033","23.84","Services - Professional Fees","190456503","11/05/2018","Fleet Services","Fleet Management","R4400"
"Wolverhampton City Council","http://opendatacommunities.org/id/metropolitan-district-council/wolverhampton","703576","Evans Halshaw Ford","243033","132.53","Services - Professional Fees","190456503","11/05/2018","Fleet Services","Fleet Management","R4400"
"Wolverhampton City Council","http://opendatacommunities.org/id/metropolitan-district-council/wolverhampton","703576","Evans Halshaw Ford","243033","187.50","Services - Professional Fees","190456503","11/05/2018","Fleet Services","Fleet Management","R4400"
"Wolverhampton City Council","http://opendatacommunities.org/id/metropolitan-district-council/wolverhampton","703576","Evans Halshaw Ford","243033","37.10","Services - Professional Fees","190456503","11/05/2018","Fleet Services","Fleet Management","R4400"
"Wolverhampton City Council","http://opendatacommunities.org/id/metropolitan-district-council/wolverhampton","703576","Evans Halshaw Ford","243033","60.00","Services - Professional Fees","190456503","11/05/2018","Fleet Services","Fleet Management","R4400"
"Wolverhampton City Council","http://opendatacommunities.org/id/metropolitan-district-council/wolverhampton","703576","Evans Halshaw Ford","243033","5.34","Services - Professional Fees","190456503","11/05/2018","Fleet Services","Fleet Management","R4400"
"Wolverhampton City Council","http://opendatacommunities.org/id/metropolitan-district-council/wolverhampton","703576","Evans Halshaw Ford","243033","383.69","Services - Professional Fees","190456503","11/05/2018","Fleet Services","Fleet Management","R4400"
"Wolverhampton City Council","http://opendatacommunities.org/id/metropolitan-district-council/wolverhampton","703576","Evans Halshaw Ford","240607","6.57","Services - Professional Fees","190456500","11/05/2018","Fleet Services","Fleet Management","R4400"
"Wolverhampton City Council","http://opendatacommunities.org/id/metropolitan-district-council/wolverhampton","703576","Evans Halshaw Ford","240607","130.00","Services - Professional Fees","190456500","11/05/2018","Fleet Services","Fleet Management","R4400"
"Wolverhampton City Council","http://opendatacommunities.org/id/metropolitan-district-council/wolverhampton","703576","Evans Halshaw Ford","243072","150.00","Services - Professional Fees","190456504","11/05/2018","Fleet Services","Fleet Management","R4400"
"Wolverhampton City Council","http://opendatacommunities.org/id/metropolitan-district-council/wolverhampton","703576","Evans Halshaw Ford","243072","165.91","Services - Professional Fees","190456504","11/05/2018","Fleet Services","Fleet Management","R4400"
"Wolverhampton City Council","http://opendatacommunities.org/id/metropolitan-district-council/wolverhampton","703576","Evans Halshaw Ford","240607","3.00","Services - Professional Fees","190456500","11/05/2018","Fleet Services","Fleet Management","R4400"
"Wolverhampton City Council","http://opendatacommunities.org/id/metropolitan-district-council/wolverhampton","703576","Evans Halshaw Ford","240607","113.90","Services - Professional Fees","190456500","11/05/2018","Fleet Services","Fleet Management","R4400"
"Wolverhampton City Council","http://opendatacommunities.org/id/metropolitan-district-council/wolverhampton","703576","Evans Halshaw Ford","939646","20.03","Equipment - Purchase","190461342","23/05/2018","Fleet Services","Fleet Management","R4000"
"Wolverhampton City Council","http://opendatacommunities.org/id/metropolitan-district-council/wolverhampton","703576","Evans Halshaw Ford","939962","152.95","Equipment - Purchase","190462869","25/05/2018","Fleet Services","Fleet Management","R4000"
"Wolverhampton City Council","http://opendatacommunities.org/id/metropolitan-district-council/wolverhampton","703576","Evans Halshaw Ford","938286","33.68","Equipment - Purchase","190455271","09/05/2018","Fleet Services","Fleet Management","R4000"
"Wolverhampton City Council","http://opendatacommunities.org/id/metropolitan-district-council/wolverhampton","703600","F & M Building Services","16/0742/DFG","3,411.23","Grants paid out to other organisations","190462061","23/05/2018","-","Disabled Facilities Grants","C5011"
"Wolverhampton City Council","http://opendatacommunities.org/id/metropolitan-district-council/wolverhampton","703609","F.W. Bickford & Sons Limited","329509","150.40","Hire of Vehicles","190455253","09/05/2018","Fleet Services","Fleet Management","R3200"
"Wolverhampton City Council","http://opendatacommunities.org/id/metropolitan-district-council/wolverhampton","703609","F.W. Bickford & Sons Limited","329833","1,785.00","Hire of Vehicles","190455254","09/05/2018","Fleet Services","Fleet Management","R3200"
"Wolverhampton City Council","http://opendatacommunities.org/id/metropolitan-district-council/wolverhampton","703627","Falon Nameplates Limited","2180628","45.80","Materials for resale","130212628","04/05/2018","Bereavement Services","Crematorium","R4008"
"Wolverhampton City Council","http://opendatacommunities.org/id/metropolitan-district-council/wolverhampton","703627","Falon Nameplates Limited","2180777","48.25","Materials for resale","130214924","09/05/2018","Bereavement Services","Crematorium","R4008"
"Wolverhampton City Council","http://opendatacommunities.org/id/metropolitan-district-council/wolverhampton","703627","Falon Nameplates Limited","2180881","91.50","Materials for resale","130216444","23/05/2018","Bereavement Services","Crematorium","R4008"
"Wolverhampton City Council","http://opendatacommunities.org/id/metropolitan-district-council/wolverhampton","703627","Falon Nameplates Limited","2180669","96.50","Materials for resale","130212926","04/05/2018","Bereavement Services","Crematorium","R4008"
"Wolverhampton City Council","http://opendatacommunities.org/id/metropolitan-district-council/wolverhampton","703686","Firewalker (UK) Limited","11262","219.00","TPP - Child Care provided for client","130217066","30/05/2018","Adult Education","Discretionary Fund","R5034"
"Wolverhampton City Council","http://opendatacommunities.org/id/metropolitan-district-council/wolverhampton","703686","Firewalker (UK) Limited","11209","191.25","TPP - Child Care provided for client","130214925","04/05/2018","Adult Education","Discretionary Fund","R5034"
"Wolverhampton City Council","http://opendatacommunities.org/id/metropolitan-district-council/wolverhampton","703698","First Response (First Aid) Limited","21777","325.00","Training Expenses","130214123","02/05/2018","School Planning & Resources","Education Data Services","R1650"
"Wolverhampton City Council","http://opendatacommunities.org/id/metropolitan-district-council/wolverhampton","703698","First Response (First Aid) Limited","21885","160.00","Training Expenses","130214620","09/05/2018","Public Service Reform","Centralised Training","R1650"
"Wolverhampton City Council","http://opendatacommunities.org/id/metropolitan-district-council/wolverhampton","703698","First Response (First Aid) Limited","22108","160.00","Training Expenses","130217345","30/05/2018","Public Service Reform","Centralised Training","R1650"
"Wolverhampton City Council","http://opendatacommunities.org/id/metropolitan-district-council/wolverhampton","703717","Flogas UK Limited","3951157","1,150.75","Gas","130215693","11/05/2018","School Planning & Resources","Towers Outdoor Education Centre","R2101"
"Wolverhampton City Council","http://opendatacommunities.org/id/metropolitan-district-council/wolverhampton","703759","Forward Products:Ex John Knight Educ","1339018STP004","64.63","Stationery","130216310","16/05/2018","Schools","St Paul�s Church of England (Aided) School","R4308"
"Wolverhampton City Council","http://opendatacommunities.org/id/metropolitan-district-council/wolverhampton","703823","Ft Leisure Limited","12058","373.56","Equipment - R & M","130215003","23/05/2018","Leisure Services","Bert Williams Leisure Centre","R4003"
"Wolverhampton City Council","http://opendatacommunities.org/id/metropolitan-district-council/wolverhampton","703823","Ft Leisure Limited","12063","195.00","Equipment - R & M","130215005","23/05/2018","Leisure Services","Bert Williams Leisure Centre","R4003"
"Wolverhampton City Council","http://opendatacommunities.org/id/metropolitan-district-council/wolverhampton","703823","Ft Leisure Limited","12078","1,803.36","Equipment - R & M","130215006","23/05/2018","Leisure Services","Bert Williams Leisure Centre","R4003"
"Wolverhampton City Council","http://opendatacommunities.org/id/metropolitan-district-council/wolverhampton","703823","Ft Leisure Limited","12059","2,064.98","Equipment - R & M","130215004","23/05/2018","Leisure Services","Bert Williams Leisure Centre","R4003"
"Wolverhampton City Council","http://opendatacommunities.org/id/metropolitan-district-council/wolverhampton","703823","Ft Leisure Limited","12079","207.00","Equipment - R & M","130215007","23/05/2018","Leisure Services","Bert Williams Leisure Centre","R4003"
"Wolverhampton City Council","http://opendatacommunities.org/id/metropolitan-district-council/wolverhampton","703868","G.C.Rickards (Investments) Limited","1224","425.00","Rent","130214124","04/05/2018","Highways Maintenance","Patching","R2200"
"Wolverhampton City Council","http://opendatacommunities.org/id/metropolitan-district-council/wolverhampton","703868","G.C.Rickards (Investments) Limited","1224","425.00","Rent","130214124","04/05/2018","Highways Maintenance","Planned Highways Maintenance","R2200"
"Wolverhampton City Council","http://opendatacommunities.org/id/metropolitan-district-council/wolverhampton","703895","Gatenby Sanderson Limited","37860","2,200.00","Training Expenses","130214621","04/05/2018","Public Service Reform","Centralised Training","R1650"
"Wolverhampton City Council","http://opendatacommunities.org/id/metropolitan-district-council/wolverhampton","703902","Geesink Norba Limited","90014439","116.64","Services - Professional Fees","190461338","23/05/2018","Fleet Services","Fleet Management","R4400"
"Wolverhampton City Council","http://opendatacommunities.org/id/metropolitan-district-council/wolverhampton","703902","Geesink Norba Limited","90014439","116.64","Services - Professional Fees","190461338","23/05/2018","Fleet Services","Fleet Management","R4400"
"Wolverhampton City Council","http://opendatacommunities.org/id/metropolitan-district-council/wolverhampton","703902","Geesink Norba Limited","90014342","166.63","Services - Professional Fees","190461337","23/05/2018","Fleet Services","Fleet Management","R4400"
"Wolverhampton City Council","http://opendatacommunities.org/id/metropolitan-district-council/wolverhampton","703902","Geesink Norba Limited","90014342","11.50","Services - Professional Fees","190461337","23/05/2018","Fleet Services","Fleet Management","R4400"
"Wolverhampton City Council","http://opendatacommunities.org/id/metropolitan-district-council/wolverhampton","703902","Geesink Norba Limited","90014342","66.65","Services - Professional Fees","190461337","23/05/2018","Fleet Services","Fleet Management","R4400"
"Wolverhampton City Council","http://opendatacommunities.org/id/metropolitan-district-council/wolverhampton","703902","Geesink Norba Limited","90014342","15.00","Services - Professional Fees","190461337","23/05/2018","Fleet Services","Fleet Management","R4400"
"Wolverhampton City Council","http://opendatacommunities.org/id/metropolitan-district-council/wolverhampton","703934","Geze UK Limited","88356209","144.00","R&M - Departmental planned (external)","130215525","23/05/2018","Maintenance Programme","Centralised R&M","R2001"
"Wolverhampton City Council","http://opendatacommunities.org/id/metropolitan-district-council/wolverhampton","703955","Glaze Auto Parts Limited","IN700348","175.00","Equipment - Purchase","190462903","25/05/2018","Fleet Services","Fleet Management","R4000"
"Wolverhampton City Council","http://opendatacommunities.org/id/metropolitan-district-council/wolverhampton","703955","Glaze Auto Parts Limited","IN699112","12.53","Equipment - Purchase","190455309","09/05/2018","Fleet Services","Fleet Management","R4000"
"Wolverhampton City Council","http://opendatacommunities.org/id/metropolitan-district-council/wolverhampton","703955","Glaze Auto Parts Limited","IN698525","34.99","Equipment - Purchase","190455305","09/05/2018","Fleet Services","Fleet Management","R4000"
"Wolverhampton City Council","http://opendatacommunities.org/id/metropolitan-district-council/wolverhampton","703955","Glaze Auto Parts Limited","IN699310","20.99","Equipment - Purchase","190458220","16/05/2018","Fleet Services","Fleet Management","R4000"
"Wolverhampton City Council","http://opendatacommunities.org/id/metropolitan-district-council/wolverhampton","703955","Glaze Auto Parts Limited","CR125222","-30.36","Equipment - Purchase","190456510","11/05/2018","Fleet Services","Fleet Management","R4000"
"Wolverhampton City Council","http://opendatacommunities.org/id/metropolitan-district-council/wolverhampton","703955","Glaze Auto Parts Limited","IN698851","9.73","Equipment - Purchase","190455306","09/05/2018","Fleet Services","Fleet Management","R4000"
"Wolverhampton City Council","http://opendatacommunities.org/id/metropolitan-district-council/wolverhampton","703955","Glaze Auto Parts Limited","IN699885","59.40","Equipment - Purchase","190458222","16/05/2018","Fleet Services","Fleet Management","R4000"
"Wolverhampton City Council","http://opendatacommunities.org/id/metropolitan-district-council/wolverhampton","703955","Glaze Auto Parts Limited","IN699936","32.04","Equipment - Purchase","190458223","16/05/2018","Fleet Services","Fleet Management","R4000"
"Wolverhampton City Council","http://opendatacommunities.org/id/metropolitan-district-council/wolverhampton","703955","Glaze Auto Parts Limited","CR124835","-44.34","Equipment - Purchase","190456509","11/05/2018","Fleet Services","Fleet Management","R4000"
"Wolverhampton City Council","http://opendatacommunities.org/id/metropolitan-district-council/wolverhampton","703955","Glaze Auto Parts Limited","IN698334","30.50","Equipment - Purchase","190455304","09/05/2018","Fleet Services","Fleet Management","R4000"
"Wolverhampton City Council","http://opendatacommunities.org/id/metropolitan-district-council/wolverhampton","703955","Glaze Auto Parts Limited","IN698334","10.25","Equipment - Purchase","190455304","09/05/2018","Fleet Services","Fleet Management","R4000"
"Wolverhampton City Council","http://opendatacommunities.org/id/metropolitan-district-council/wolverhampton","703955","Glaze Auto Parts Limited","IN698334","10.41","Equipment - Purchase","190455304","09/05/2018","Fleet Services","Fleet Management","R4000"
"Wolverhampton City Council","http://opendatacommunities.org/id/metropolitan-district-council/wolverhampton","703955","Glaze Auto Parts Limited","IN698334","19.96","Equipment - Purchase","190455304","09/05/2018","Fleet Services","Fleet Management","R4000"
"Wolverhampton City Council","http://opendatacommunities.org/id/metropolitan-district-council/wolverhampton","703955","Glaze Auto Parts Limited","IN698334","5.37","Equipment - Purchase","190455304","09/05/2018","Fleet Services","Fleet Management","R4000"
"Wolverhampton City Council","http://opendatacommunities.org/id/metropolitan-district-council/wolverhampton","703955","Glaze Auto Parts Limited","IN698334","116.44","Equipment - Purchase","190455304","09/05/2018","Fleet Services","Fleet Management","R4000"
"Wolverhampton City Council","http://opendatacommunities.org/id/metropolitan-district-council/wolverhampton","703955","Glaze Auto Parts Limited","IN698334","8.38","Equipment - Purchase","190455304","09/05/2018","Fleet Services","Fleet Management","R4000"
"Wolverhampton City Council","http://opendatacommunities.org/id/metropolitan-district-council/wolverhampton","703955","Glaze Auto Parts Limited","IN698334","9.02","Equipment - Purchase","190455304","09/05/2018","Fleet Services","Fleet Management","R4000"
"Wolverhampton City Council","http://opendatacommunities.org/id/metropolitan-district-council/wolverhampton","703955","Glaze Auto Parts Limited","IN698334","9.78","Equipment - Purchase","190455304","09/05/2018","Fleet Services","Fleet Management","R4000"
"Wolverhampton City Council","http://opendatacommunities.org/id/metropolitan-district-council/wolverhampton","703955","Glaze Auto Parts Limited","IN698334","29.58","Equipment - Purchase","190455304","09/05/2018","Fleet Services","Fleet Management","R4000"
"Wolverhampton City Council","http://opendatacommunities.org/id/metropolitan-district-council/wolverhampton","703955","Glaze Auto Parts Limited","IN698334","28.34","Equipment - Purchase","190455304","09/05/2018","Fleet Services","Fleet Management","R4000"
"Wolverhampton City Council","http://opendatacommunities.org/id/metropolitan-district-council/wolverhampton","703955","Glaze Auto Parts Limited","IN698334","6.85","Equipment - Purchase","190455304","09/05/2018","Fleet Services","Fleet Management","R4000"
"Wolverhampton City Council","http://opendatacommunities.org/id/metropolitan-district-council/wolverhampton","703955","Glaze Auto Parts Limited","IN698334","9.33","Equipment - Purchase","190455304","09/05/2018","Fleet Services","Fleet Management","R4000"
"Wolverhampton City Council","http://opendatacommunities.org/id/metropolitan-district-council/wolverhampton","703955","Glaze Auto Parts Limited","IN699668","281.46","Equipment - Purchase","190458221","16/05/2018","Fleet Services","Fleet Management","R4000"
"Wolverhampton City Council","http://opendatacommunities.org/id/metropolitan-district-council/wolverhampton","703955","Glaze Auto Parts Limited","IN700124","61.12","Equipment - Purchase","190462902","25/05/2018","Fleet Services","Fleet Management","R4000"
"Wolverhampton City Council","http://opendatacommunities.org/id/metropolitan-district-council/wolverhampton","703955","Glaze Auto Parts Limited","IN698861","38.16","Equipment - Purchase","190458219","16/05/2018","Fleet Services","Fleet Management","R4000"
"Wolverhampton City Council","http://opendatacommunities.org/id/metropolitan-district-council/wolverhampton","703955","Glaze Auto Parts Limited","IN698453","30.00","Equipment - Purchase","190458218","16/05/2018","Fleet Services","Fleet Management","R4000"
"Wolverhampton City Council","http://opendatacommunities.org/id/metropolitan-district-council/wolverhampton","703955","Glaze Auto Parts Limited","IN698453","170.00","Equipment - Purchase","190458218","16/05/2018","Fleet Services","Fleet Management","R4000"
"Wolverhampton City Council","http://opendatacommunities.org/id/metropolitan-district-council/wolverhampton","703955","Glaze Auto Parts Limited","IN693262","59.12","Equipment - Purchase","190456515","11/05/2018","Fleet Services","Fleet Management","R4000"
"Wolverhampton City Council","http://opendatacommunities.org/id/metropolitan-district-council/wolverhampton","703955","Glaze Auto Parts Limited","IN693262","50.60","Equipment - Purchase","190456515","11/05/2018","Fleet Services","Fleet Management","R4000"
"Wolverhampton City Council","http://opendatacommunities.org/id/metropolitan-district-council/wolverhampton","703955","Glaze Auto Parts Limited","IN696537","16.64","Equipment - Purchase","190456516","11/05/2018","Fleet Services","Fleet Management","R4000"
"Wolverhampton City Council","http://opendatacommunities.org/id/metropolitan-district-council/wolverhampton","703955","Glaze Auto Parts Limited","IN696537","59.52","Equipment - Purchase","190456516","11/05/2018","Fleet Services","Fleet Management","R4000"
"Wolverhampton City Council","http://opendatacommunities.org/id/metropolitan-district-council/wolverhampton","703955","Glaze Auto Parts Limited","IN696537","22.35","Equipment - Purchase","190456516","11/05/2018","Fleet Services","Fleet Management","R4000"
"Wolverhampton City Council","http://opendatacommunities.org/id/metropolitan-district-council/wolverhampton","703955","Glaze Auto Parts Limited","IN696537","15.30","Equipment - Purchase","190456516","11/05/2018","Fleet Services","Fleet Management","R4000"
"Wolverhampton City Council","http://opendatacommunities.org/id/metropolitan-district-council/wolverhampton","703955","Glaze Auto Parts Limited","IN696537","38.73","Equipment - Purchase","190456516","11/05/2018","Fleet Services","Fleet Management","R4000"
"Wolverhampton City Council","http://opendatacommunities.org/id/metropolitan-district-council/wolverhampton","703955","Glaze Auto Parts Limited","IN696537","30.36","Equipment - Purchase","190456516","11/05/2018","Fleet Services","Fleet Management","R4000"
"Wolverhampton City Council","http://opendatacommunities.org/id/metropolitan-district-council/wolverhampton","703955","Glaze Auto Parts Limited","IN700383","74.65","Equipment - Purchase","190462904","25/05/2018","Fleet Services","Fleet Management","R4000"
"Wolverhampton City Council","http://opendatacommunities.org/id/metropolitan-district-council/wolverhampton","703955","Glaze Auto Parts Limited","IN699085","3.24","Equipment - Purchase","190455308","09/05/2018","Fleet Services","Fleet Management","R4000"
"Wolverhampton City Council","http://opendatacommunities.org/id/metropolitan-district-council/wolverhampton","703955","Glaze Auto Parts Limited","IN699052","38.69","Equipment - Purchase","190455307","09/05/2018","Fleet Services","Fleet Management","R4000"
"Wolverhampton City Council","http://opendatacommunities.org/id/metropolitan-district-council/wolverhampton","703955","Glaze Auto Parts Limited","CR125431","-30.00","Equipment - Purchase","190458206","16/05/2018","Fleet Services","Fleet Management","R4000"
"Wolverhampton City Council","http://opendatacommunities.org/id/metropolitan-district-council/wolverhampton","703964","Globe Ladders Limited","127601","877.40","Materials","130213957","02/05/2018","Environmental Maintenance","Ground Maintenance East","R4007"
"Wolverhampton City Council","http://opendatacommunities.org/id/metropolitan-district-council/wolverhampton","703996","Goss Interactive Limited","18172","13,290.00","Computing - Maint Agreements","130215008","09/05/2018","ICTS","Strategic ICTS (ICT Service Budget)","R4534"
"Wolverhampton City Council","http://opendatacommunities.org/id/metropolitan-district-council/wolverhampton","704000","Govnet Communications","0000136401","2,833.34","Marketing \ Non-staff advertising","130215009","04/05/2018","School Planning & Resources","Technical Support","R4317"
"Wolverhampton City Council","http://opendatacommunities.org/id/metropolitan-district-council/wolverhampton","704000","Govnet Communications","0000136401","2,833.33","Marketing \ Non-staff advertising","130215009","04/05/2018","School Planning & Resources","Learning Technologies","R4317"
"Wolverhampton City Council","http://opendatacommunities.org/id/metropolitan-district-council/wolverhampton","704000","Govnet Communications","0000136401","2,833.33","Marketing \ Non-staff advertising","130215009","04/05/2018","School Planning & Resources","Education Data Services","R4317"
"Wolverhampton City Council","http://opendatacommunities.org/id/metropolitan-district-council/wolverhampton","704039","Greenacres Leonard Cheshire Disab�Ty","P172433 27051820180504","4,179.36","TPP - Nursing Care - Long Term","190454961","09/05/2018","Physical Disabilities Care Purchasing","PD Care Purchasing (Spot Placements)","R5410"
"Wolverhampton City Council","http://opendatacommunities.org/id/metropolitan-district-council/wolverhampton","704044","Greenhous Commercials Limited","13709196","91.00","MOT & HGV Tests","190463067","30/05/2018","Fleet Services","Fleet Management","R3005"
"Wolverhampton City Council","http://opendatacommunities.org/id/metropolitan-district-council/wolverhampton","704044","Greenhous Commercials Limited","13709196","35.00","MOT & HGV Tests","190463067","30/05/2018","Fleet Services","Fleet Management","R3005"
"Wolverhampton City Council","http://opendatacommunities.org/id/metropolitan-district-council/wolverhampton","704044","Greenhous Commercials Limited","13084384","4.92","Equipment - Purchase","190461313","23/05/2018","Fleet Services","Fleet Management","R4000"
"Wolverhampton City Council","http://opendatacommunities.org/id/metropolitan-district-council/wolverhampton","704044","Greenhous Commercials Limited","13084384","42.55","Equipment - Purchase","190461313","23/05/2018","Fleet Services","Fleet Management","R4000"
"Wolverhampton City Council","http://opendatacommunities.org/id/metropolitan-district-council/wolverhampton","704044","Greenhous Commercials Limited","13706818","15.00","Services - Professional Fees","190461316","23/05/2018","Fleet Services","Fleet Management","R4400"
"Wolverhampton City Council","http://opendatacommunities.org/id/metropolitan-district-council/wolverhampton","704044","Greenhous Commercials Limited","13706818","54.00","Services - Professional Fees","190461316","23/05/2018","Fleet Services","Fleet Management","R4400"
"Wolverhampton City Council","http://opendatacommunities.org/id/metropolitan-district-council/wolverhampton","704044","Greenhous Commercials Limited","13706818","45.00","Services - Professional Fees","190461316","23/05/2018","Fleet Services","Fleet Management","R4400"
"Wolverhampton City Council","http://opendatacommunities.org/id/metropolitan-district-council/wolverhampton","704044","Greenhous Commercials Limited","1304619","-64.05","Equipment - Purchase","190455217","09/05/2018","Fleet Services","Fleet Management","R4000"
"Wolverhampton City Council","http://opendatacommunities.org/id/metropolitan-district-council/wolverhampton","704044","Greenhous Commercials Limited","13708040","133.09","Services - Professional Fees","190455229","09/05/2018","Fleet Services","Fleet Management","R4400"
"Wolverhampton City Council","http://opendatacommunities.org/id/metropolitan-district-council/wolverhampton","704044","Greenhous Commercials Limited","13708040","5.14","Services - Professional Fees","190455229","09/05/2018","Fleet Services","Fleet Management","R4400"
"Wolverhampton City Council","http://opendatacommunities.org/id/metropolitan-district-council/wolverhampton","704044","Greenhous Commercials Limited","13708040","17.33","Services - Professional Fees","190455229","09/05/2018","Fleet Services","Fleet Management","R4400"
"Wolverhampton City Council","http://opendatacommunities.org/id/metropolitan-district-council/wolverhampton","704044","Greenhous Commercials Limited","13708040","88.50","Services - Professional Fees","190455229","09/05/2018","Fleet Services","Fleet Management","R4400"
"Wolverhampton City Council","http://opendatacommunities.org/id/metropolitan-district-council/wolverhampton","704044","Greenhous Commercials Limited","13708040","8.52","Services - Professional Fees","190455229","09/05/2018","Fleet Services","Fleet Management","R4400"
"Wolverhampton City Council","http://opendatacommunities.org/id/metropolitan-district-council/wolverhampton","704044","Greenhous Commercials Limited","13708040","173.25","Services - Professional Fees","190455229","09/05/2018","Fleet Services","Fleet Management","R4400"
"Wolverhampton City Council","http://opendatacommunities.org/id/metropolitan-district-council/wolverhampton","704044","Greenhous Commercials Limited","13708040","17.34","Services - Professional Fees","190455229","09/05/2018","Fleet Services","Fleet Management","R4400"
"Wolverhampton City Council","http://opendatacommunities.org/id/metropolitan-district-council/wolverhampton","704044","Greenhous Commercials Limited","13708040","28.88","Services - Professional Fees","190455229","09/05/2018","Fleet Services","Fleet Management","R4400"
"Wolverhampton City Council","http://opendatacommunities.org/id/metropolitan-district-council/wolverhampton","704044","Greenhous Commercials Limited","13708040","50.00","Services - Professional Fees","190455229","09/05/2018","Fleet Services","Fleet Management","R4400"
"Wolverhampton City Council","http://opendatacommunities.org/id/metropolitan-district-council/wolverhampton","704044","Greenhous Commercials Limited","13708040","28.88","Services - Professional Fees","190455229","09/05/2018","Fleet Services","Fleet Management","R4400"
"Wolverhampton City Council","http://opendatacommunities.org/id/metropolitan-district-council/wolverhampton","704044","Greenhous Commercials Limited","13708040","168.00","Services - Professional Fees","190455229","09/05/2018","Fleet Services","Fleet Management","R4400"
"Wolverhampton City Council","http://opendatacommunities.org/id/metropolitan-district-council/wolverhampton","704044","Greenhous Commercials Limited","13708040","173.25","Services - Professional Fees","190455229","09/05/2018","Fleet Services","Fleet Management","R4400"
"Wolverhampton City Council","http://opendatacommunities.org/id/metropolitan-district-council/wolverhampton","704044","Greenhous Commercials Limited","13080327","4.92","Equipment - Purchase","190456489","11/05/2018","Fleet Services","Fleet Management","R4000"
"Wolverhampton City Council","http://opendatacommunities.org/id/metropolitan-district-council/wolverhampton","704044","Greenhous Commercials Limited","13708397","50.00","Services - Professional Fees","190456490","11/05/2018","Fleet Services","Fleet Management","R4400"
"Wolverhampton City Council","http://opendatacommunities.org/id/metropolitan-district-council/wolverhampton","704044","Greenhous Commercials Limited","13707952","91.00","MOT & HGV Tests","190463065","30/05/2018","Fleet Services","Fleet Management","R3005"
"Wolverhampton City Council","http://opendatacommunities.org/id/metropolitan-district-council/wolverhampton","704044","Greenhous Commercials Limited","13707952","35.00","MOT & HGV Tests","190463065","30/05/2018","Fleet Services","Fleet Management","R3005"
"Wolverhampton City Council","http://opendatacommunities.org/id/metropolitan-district-council/wolverhampton","704044","Greenhous Commercials Limited","13708523","115.50","Services - Professional Fees","190456493","11/05/2018","Fleet Services","Fleet Management","R4400"
"Wolverhampton City Council","http://opendatacommunities.org/id/metropolitan-district-council/wolverhampton","704044","Greenhous Commercials Limited","13708679","115.50","Services - Professional Fees","190456496","11/05/2018","Fleet Services","Fleet Management","R4400"
"Wolverhampton City Council","http://opendatacommunities.org/id/metropolitan-district-council/wolverhampton","704044","Greenhous Commercials Limited","13708679","79.56","Services - Professional Fees","190456496","11/05/2018","Fleet Services","Fleet Management","R4400"
"Wolverhampton City Council","http://opendatacommunities.org/id/metropolitan-district-council/wolverhampton","704044","Greenhous Commercials Limited","13708679","50.00","Services - Professional Fees","190456496","11/05/2018","Fleet Services","Fleet Management","R4400"
"Wolverhampton City Council","http://opendatacommunities.org/id/metropolitan-district-council/wolverhampton","704044","Greenhous Commercials Limited","13708716","15.00","Services - Professional Fees","190456497","11/05/2018","Fleet Services","Fleet Management","R4400"
"Wolverhampton City Council","http://opendatacommunities.org/id/metropolitan-district-council/wolverhampton","704044","Greenhous Commercials Limited","13708716","65.00","Services - Professional Fees","190456497","11/05/2018","Fleet Services","Fleet Management","R4400"
"Wolverhampton City Council","http://opendatacommunities.org/id/metropolitan-district-council/wolverhampton","704044","Greenhous Commercials Limited","13708235","28.88","Services - Professional Fees","190462847","25/05/2018","Fleet Services","Fleet Management","R4400"
"Wolverhampton City Council","http://opendatacommunities.org/id/metropolitan-district-council/wolverhampton","704044","Greenhous Commercials Limited","13708235","6.23","Services - Professional Fees","190462847","25/05/2018","Fleet Services","Fleet Management","R4400"
"Wolverhampton City Council","http://opendatacommunities.org/id/metropolitan-district-council/wolverhampton","704044","Greenhous Commercials Limited","13708235","17.33","Services - Professional Fees","190462847","25/05/2018","Fleet Services","Fleet Management","R4400"
"Wolverhampton City Council","http://opendatacommunities.org/id/metropolitan-district-council/wolverhampton","704044","Greenhous Commercials Limited","13708235","3.60","Services - Professional Fees","190462847","25/05/2018","Fleet Services","Fleet Management","R4400"
"Wolverhampton City Council","http://opendatacommunities.org/id/metropolitan-district-council/wolverhampton","704044","Greenhous Commercials Limited","13708235","28.88","Services - Professional Fees","190462847","25/05/2018","Fleet Services","Fleet Management","R4400"
"Wolverhampton City Council","http://opendatacommunities.org/id/metropolitan-district-council/wolverhampton","704044","Greenhous Commercials Limited","13708235","57.75","Services - Professional Fees","190462847","25/05/2018","Fleet Services","Fleet Management","R4400"
"Wolverhampton City Council","http://opendatacommunities.org/id/metropolitan-district-council/wolverhampton","704044","Greenhous Commercials Limited","13708235","109.44","Services - Professional Fees","190462847","25/05/2018","Fleet Services","Fleet Management","R4400"
"Wolverhampton City Council","http://opendatacommunities.org/id/metropolitan-district-council/wolverhampton","704044","Greenhous Commercials Limited","13708235","57.75","Services - Professional Fees","190462847","25/05/2018","Fleet Services","Fleet Management","R4400"
"Wolverhampton City Council","http://opendatacommunities.org/id/metropolitan-district-council/wolverhampton","704044","Greenhous Commercials Limited","13708235","231.00","Services - Professional Fees","190462847","25/05/2018","Fleet Services","Fleet Management","R4400"
"Wolverhampton City Council","http://opendatacommunities.org/id/metropolitan-district-council/wolverhampton","704044","Greenhous Commercials Limited","13708235","17.75","Services - Professional Fees","190462847","25/05/2018","Fleet Services","Fleet Management","R4400"
"Wolverhampton City Council","http://opendatacommunities.org/id/metropolitan-district-council/wolverhampton","704044","Greenhous Commercials Limited","13708235","7.99","Services - Professional Fees","190462847","25/05/2018","Fleet Services","Fleet Management","R4400"
"Wolverhampton City Council","http://opendatacommunities.org/id/metropolitan-district-council/wolverhampton","704044","Greenhous Commercials Limited","13708235","50.00","Services - Professional Fees","190462847","25/05/2018","Fleet Services","Fleet Management","R4400"
"Wolverhampton City Council","http://opendatacommunities.org/id/metropolitan-district-council/wolverhampton","704044","Greenhous Commercials Limited","13708235","57.75","Services - Professional Fees","190462847","25/05/2018","Fleet Services","Fleet Management","R4400"
"Wolverhampton City Council","http://opendatacommunities.org/id/metropolitan-district-council/wolverhampton","704044","Greenhous Commercials Limited","13708235","43.31","Services - Professional Fees","190462847","25/05/2018","Fleet Services","Fleet Management","R4400"
"Wolverhampton City Council","http://opendatacommunities.org/id/metropolitan-district-council/wolverhampton","704044","Greenhous Commercials Limited","13708235","14.44","Services - Professional Fees","190462847","25/05/2018","Fleet Services","Fleet Management","R4400"
"Wolverhampton City Council","http://opendatacommunities.org/id/metropolitan-district-council/wolverhampton","704044","Greenhous Commercials Limited","13708235","24.45","Services - Professional Fees","190462847","25/05/2018","Fleet Services","Fleet Management","R4400"
"Wolverhampton City Council","http://opendatacommunities.org/id/metropolitan-district-council/wolverhampton","704044","Greenhous Commercials Limited","13708235","30.70","Services - Professional Fees","190462847","25/05/2018","Fleet Services","Fleet Management","R4400"
"Wolverhampton City Council","http://opendatacommunities.org/id/metropolitan-district-council/wolverhampton","704044","Greenhous Commercials Limited","13708235","5.78","Services - Professional Fees","190462847","25/05/2018","Fleet Services","Fleet Management","R4400"
"Wolverhampton City Council","http://opendatacommunities.org/id/metropolitan-district-council/wolverhampton","704044","Greenhous Commercials Limited","13708235","11.55","Services - Professional Fees","190462847","25/05/2018","Fleet Services","Fleet Management","R4400"
"Wolverhampton City Council","http://opendatacommunities.org/id/metropolitan-district-council/wolverhampton","704044","Greenhous Commercials Limited","13084695","13.29","Equipment - Purchase","190461314","23/05/2018","Fleet Services","Fleet Management","R4000"
"Wolverhampton City Council","http://opendatacommunities.org/id/metropolitan-district-council/wolverhampton","704044","Greenhous Commercials Limited","13084695","137.86","Equipment - Purchase","190461314","23/05/2018","Fleet Services","Fleet Management","R4000"
"Wolverhampton City Council","http://opendatacommunities.org/id/metropolitan-district-council/wolverhampton","704044","Greenhous Commercials Limited","13709199","91.00","MOT & HGV Tests","190463069","30/05/2018","Fleet Services","Fleet Management","R3005"
"Wolverhampton City Council","http://opendatacommunities.org/id/metropolitan-district-council/wolverhampton","704044","Greenhous Commercials Limited","13709199","35.00","MOT & HGV Tests","190463069","30/05/2018","Fleet Services","Fleet Management","R3005"
"Wolverhampton City Council","http://opendatacommunities.org/id/metropolitan-district-council/wolverhampton","704044","Greenhous Commercials Limited","13083677","3.96","Equipment - Purchase","190458181","23/05/2018","Fleet Services","Fleet Management","R4000"
"Wolverhampton City Council","http://opendatacommunities.org/id/metropolitan-district-council/wolverhampton","704044","Greenhous Commercials Limited","13081028","13.47","Equipment - Purchase","190455222","09/05/2018","Fleet Services","Fleet Management","R4000"
"Wolverhampton City Council","http://opendatacommunities.org/id/metropolitan-district-council/wolverhampton","704044","Greenhous Commercials Limited","1307986","-2.00","Equipment - Purchase","190455221","09/05/2018","Fleet Services","Fleet Management","R4000"
"Wolverhampton City Council","http://opendatacommunities.org/id/metropolitan-district-council/wolverhampton","704044","Greenhous Commercials Limited","1307551","-268.00","Equipment - Purchase","190455220","09/05/2018","Fleet Services","Fleet Management","R4000"
"Wolverhampton City Council","http://opendatacommunities.org/id/metropolitan-district-council/wolverhampton","704044","Greenhous Commercials Limited","13708608","103.95","Services - Professional Fees","190456494","11/05/2018","Fleet Services","Fleet Management","R4400"
"Wolverhampton City Council","http://opendatacommunities.org/id/metropolitan-district-council/wolverhampton","704044","Greenhous Commercials Limited","13708608","64.27","Services - Professional Fees","190456494","11/05/2018","Fleet Services","Fleet Management","R4400"
"Wolverhampton City Council","http://opendatacommunities.org/id/metropolitan-district-council/wolverhampton","704044","Greenhous Commercials Limited","13708608","17.33","Services - Professional Fees","190456494","11/05/2018","Fleet Services","Fleet Management","R4400"
"Wolverhampton City Council","http://opendatacommunities.org/id/metropolitan-district-council/wolverhampton","704044","Greenhous Commercials Limited","13708608","19.57","Services - Professional Fees","190456494","11/05/2018","Fleet Services","Fleet Management","R4400"
"Wolverhampton City Council","http://opendatacommunities.org/id/metropolitan-district-council/wolverhampton","704044","Greenhous Commercials Limited","13708608","50.00","Services - Professional Fees","190456494","11/05/2018","Fleet Services","Fleet Management","R4400"
"Wolverhampton City Council","http://opendatacommunities.org/id/metropolitan-district-council/wolverhampton","704044","Greenhous Commercials Limited","13708608","2.15","Services - Professional Fees","190456494","11/05/2018","Fleet Services","Fleet Management","R4400"
"Wolverhampton City Council","http://opendatacommunities.org/id/metropolitan-district-council/wolverhampton","704044","Greenhous Commercials Limited","13708608","11.55","Services - Professional Fees","190456494","11/05/2018","Fleet Services","Fleet Management","R4400"
"Wolverhampton City Council","http://opendatacommunities.org/id/metropolitan-district-council/wolverhampton","704044","Greenhous Commercials Limited","13708608","4.82","Services - Professional Fees","190456494","11/05/2018","Fleet Services","Fleet Management","R4400"
"Wolverhampton City Council","http://opendatacommunities.org/id/metropolitan-district-council/wolverhampton","704044","Greenhous Commercials Limited","13708608","8.66","Services - Professional Fees","190456494","11/05/2018","Fleet Services","Fleet Management","R4400"
"Wolverhampton City Council","http://opendatacommunities.org/id/metropolitan-district-council/wolverhampton","704044","Greenhous Commercials Limited","13708608","35.55","Services - Professional Fees","190456494","11/05/2018","Fleet Services","Fleet Management","R4400"
"Wolverhampton City Council","http://opendatacommunities.org/id/metropolitan-district-council/wolverhampton","704044","Greenhous Commercials Limited","13708608","231.00","Services - Professional Fees","190456494","11/05/2018","Fleet Services","Fleet Management","R4400"
"Wolverhampton City Council","http://opendatacommunities.org/id/metropolitan-district-council/wolverhampton","704044","Greenhous Commercials Limited","13708608","79.50","Services - Professional Fees","190456494","11/05/2018","Fleet Services","Fleet Management","R4400"
"Wolverhampton City Council","http://opendatacommunities.org/id/metropolitan-district-council/wolverhampton","704044","Greenhous Commercials Limited","13708608","11.55","Services - Professional Fees","190456494","11/05/2018","Fleet Services","Fleet Management","R4400"
"Wolverhampton City Council","http://opendatacommunities.org/id/metropolitan-district-council/wolverhampton","704044","Greenhous Commercials Limited","13708608","4.74","Services - Professional Fees","190456494","11/05/2018","Fleet Services","Fleet Management","R4400"
"Wolverhampton City Council","http://opendatacommunities.org/id/metropolitan-district-council/wolverhampton","704044","Greenhous Commercials Limited","13708608","20.20","Services - Professional Fees","190456494","11/05/2018","Fleet Services","Fleet Management","R4400"
"Wolverhampton City Council","http://opendatacommunities.org/id/metropolitan-district-council/wolverhampton","704044","Greenhous Commercials Limited","13708608","5.78","Services - Professional Fees","190456494","11/05/2018","Fleet Services","Fleet Management","R4400"
"Wolverhampton City Council","http://opendatacommunities.org/id/metropolitan-district-council/wolverhampton","704044","Greenhous Commercials Limited","13708608","415.18","Services - Professional Fees","190456494","11/05/2018","Fleet Services","Fleet Management","R4400"
"Wolverhampton City Council","http://opendatacommunities.org/id/metropolitan-district-council/wolverhampton","704044","Greenhous Commercials Limited","13708608","23.10","Services - Professional Fees","190456494","11/05/2018","Fleet Services","Fleet Management","R4400"
"Wolverhampton City Council","http://opendatacommunities.org/id/metropolitan-district-council/wolverhampton","704044","Greenhous Commercials Limited","13708608","86.63","Services - Professional Fees","190456494","11/05/2018","Fleet Services","Fleet Management","R4400"
"Wolverhampton City Council","http://opendatacommunities.org/id/metropolitan-district-council/wolverhampton","704044","Greenhous Commercials Limited","13708608","43.31","Services - Professional Fees","190456494","11/05/2018","Fleet Services","Fleet Management","R4400"
"Wolverhampton City Council","http://opendatacommunities.org/id/metropolitan-district-council/wolverhampton","704044","Greenhous Commercials Limited","13708608","0.91","Services - Professional Fees","190456494","11/05/2018","Fleet Services","Fleet Management","R4400"
"Wolverhampton City Council","http://opendatacommunities.org/id/metropolitan-district-council/wolverhampton","704044","Greenhous Commercials Limited","13708608","28.88","Services - Professional Fees","190456494","11/05/2018","Fleet Services","Fleet Management","R4400"
"Wolverhampton City Council","http://opendatacommunities.org/id/metropolitan-district-council/wolverhampton","704044","Greenhous Commercials Limited","13708400","15.00","Services - Professional Fees","190456491","11/05/2018","Fleet Services","Fleet Management","R4400"
"Wolverhampton City Council","http://opendatacommunities.org/id/metropolitan-district-council/wolverhampton","704044","Greenhous Commercials Limited","13708400","54.00","Services - Professional Fees","190456491","11/05/2018","Fleet Services","Fleet Management","R4400"
"Wolverhampton City Council","http://opendatacommunities.org/id/metropolitan-district-council/wolverhampton","704044","Greenhous Commercials Limited","13708400","14.00","Services - Professional Fees","190456491","11/05/2018","Fleet Services","Fleet Management","R4400"
"Wolverhampton City Council","http://opendatacommunities.org/id/metropolitan-district-council/wolverhampton","704044","Greenhous Commercials Limited","13708400","45.00","Services - Professional Fees","190456491","11/05/2018","Fleet Services","Fleet Management","R4400"
"Wolverhampton City Council","http://opendatacommunities.org/id/metropolitan-district-council/wolverhampton","704044","Greenhous Commercials Limited","1363330","-35.00","MOT & HGV Tests","190463064","30/05/2018","Fleet Services","Fleet Management","R3005"
"Wolverhampton City Council","http://opendatacommunities.org/id/metropolitan-district-council/wolverhampton","704044","Greenhous Commercials Limited","1363330","-128.00","MOT & HGV Tests","190463064","30/05/2018","Fleet Services","Fleet Management","R3005"
"Wolverhampton City Council","http://opendatacommunities.org/id/metropolitan-district-council/wolverhampton","704044","Greenhous Commercials Limited","13052234","64.00","Equipment - Purchase","190455219","09/05/2018","Fleet Services","Fleet Management","R4000"
"Wolverhampton City Council","http://opendatacommunities.org/id/metropolitan-district-council/wolverhampton","704044","Greenhous Commercials Limited","13708180","57.75","Services - Professional Fees","190455232","09/05/2018","Fleet Services","Fleet Management","R4400"
"Wolverhampton City Council","http://opendatacommunities.org/id/metropolitan-district-council/wolverhampton","704044","Greenhous Commercials Limited","13708180","173.25","Services - Professional Fees","190455232","09/05/2018","Fleet Services","Fleet Management","R4400"
"Wolverhampton City Council","http://opendatacommunities.org/id/metropolitan-district-council/wolverhampton","704044","Greenhous Commercials Limited","13708180","409.59","Services - Professional Fees","190455232","09/05/2018","Fleet Services","Fleet Management","R4400"
"Wolverhampton City Council","http://opendatacommunities.org/id/metropolitan-district-council/wolverhampton","704044","Greenhous Commercials Limited","13708169","15.00","Services - Professional Fees","190455231","09/05/2018","Fleet Services","Fleet Management","R4400"
"Wolverhampton City Council","http://opendatacommunities.org/id/metropolitan-district-council/wolverhampton","704044","Greenhous Commercials Limited","13708169","45.00","Services - Professional Fees","190455231","09/05/2018","Fleet Services","Fleet Management","R4400"
"Wolverhampton City Council","http://opendatacommunities.org/id/metropolitan-district-council/wolverhampton","704044","Greenhous Commercials Limited","13707992","91.00","MOT & HGV Tests","190463066","30/05/2018","Fleet Services","Fleet Management","R3005"
"Wolverhampton City Council","http://opendatacommunities.org/id/metropolitan-district-council/wolverhampton","704044","Greenhous Commercials Limited","13707992","35.00","MOT & HGV Tests","190463066","30/05/2018","Fleet Services","Fleet Management","R3005"
"Wolverhampton City Council","http://opendatacommunities.org/id/metropolitan-district-council/wolverhampton","704044","Greenhous Commercials Limited","13082709","1.32","Equipment - Purchase","190458180","23/05/2018","Fleet Services","Fleet Management","R4000"
"Wolverhampton City Council","http://opendatacommunities.org/id/metropolitan-district-council/wolverhampton","704044","Greenhous Commercials Limited","13709518","54.00","Services - Professional Fees","190461318","23/05/2018","Fleet Services","Fleet Management","R4400"
"Wolverhampton City Council","http://opendatacommunities.org/id/metropolitan-district-council/wolverhampton","704044","Greenhous Commercials Limited","13709518","14.00","Services - Professional Fees","190461318","23/05/2018","Fleet Services","Fleet Management","R4400"
"Wolverhampton City Council","http://opendatacommunities.org/id/metropolitan-district-council/wolverhampton","704044","Greenhous Commercials Limited","13709518","15.00","Services - Professional Fees","190461318","23/05/2018","Fleet Services","Fleet Management","R4400"
"Wolverhampton City Council","http://opendatacommunities.org/id/metropolitan-district-council/wolverhampton","704044","Greenhous Commercials Limited","13709518","45.00","Services - Professional Fees","190461318","23/05/2018","Fleet Services","Fleet Management","R4400"
"Wolverhampton City Council","http://opendatacommunities.org/id/metropolitan-district-council/wolverhampton","704044","Greenhous Commercials Limited","13709047","45.00","Services - Professional Fees","190461317","23/05/2018","Fleet Services","Fleet Management","R4400"
"Wolverhampton City Council","http://opendatacommunities.org/id/metropolitan-district-council/wolverhampton","704044","Greenhous Commercials Limited","13709047","15.00","Services - Professional Fees","190461317","23/05/2018","Fleet Services","Fleet Management","R4400"
"Wolverhampton City Council","http://opendatacommunities.org/id/metropolitan-district-council/wolverhampton","704044","Greenhous Commercials Limited","13081163","140.00","Equipment - Purchase","190455223","09/05/2018","Fleet Services","Fleet Management","R4000"
"Wolverhampton City Council","http://opendatacommunities.org/id/metropolitan-district-council/wolverhampton","704044","Greenhous Commercials Limited","13051974","573.48","Equipment - Purchase","190455218","09/05/2018","Fleet Services","Fleet Management","R4000"
"Wolverhampton City Council","http://opendatacommunities.org/id/metropolitan-district-council/wolverhampton","704044","Greenhous Commercials Limited","13708146","86.63","Services - Professional Fees","190455230","09/05/2018","Fleet Services","Fleet Management","R4400"
"Wolverhampton City Council","http://opendatacommunities.org/id/metropolitan-district-council/wolverhampton","704044","Greenhous Commercials Limited","13708146","144.38","Services - Professional Fees","190455230","09/05/2018","Fleet Services","Fleet Management","R4400"
"Wolverhampton City Council","http://opendatacommunities.org/id/metropolitan-district-council/wolverhampton","704044","Greenhous Commercials Limited","13708233","12.45","Services - Professional Fees","190462846","25/05/2018","Fleet Services","Fleet Management","R4400"
"Wolverhampton City Council","http://opendatacommunities.org/id/metropolitan-district-council/wolverhampton","704044","Greenhous Commercials Limited","13708233","44.64","Services - Professional Fees","190462846","25/05/2018","Fleet Services","Fleet Management","R4400"
"Wolverhampton City Council","http://opendatacommunities.org/id/metropolitan-district-council/wolverhampton","704044","Greenhous Commercials Limited","13708233","11.55","Services - Professional Fees","190462846","25/05/2018","Fleet Services","Fleet Management","R4400"
"Wolverhampton City Council","http://opendatacommunities.org/id/metropolitan-district-council/wolverhampton","704044","Greenhous Commercials Limited","13708233","14.44","Services - Professional Fees","190462846","25/05/2018","Fleet Services","Fleet Management","R4400"
"Wolverhampton City Council","http://opendatacommunities.org/id/metropolitan-district-council/wolverhampton","704044","Greenhous Commercials Limited","13708233","72.54","Services - Professional Fees","190462846","25/05/2018","Fleet Services","Fleet Management","R4400"
"Wolverhampton City Council","http://opendatacommunities.org/id/metropolitan-district-council/wolverhampton","704044","Greenhous Commercials Limited","13708233","179.86","Services - Professional Fees","190462846","25/05/2018","Fleet Services","Fleet Management","R4400"
"Wolverhampton City Council","http://opendatacommunities.org/id/metropolitan-district-council/wolverhampton","704044","Greenhous Commercials Limited","13708233","144.38","Services - Professional Fees","190462846","25/05/2018","Fleet Services","Fleet Management","R4400"
"Wolverhampton City Council","http://opendatacommunities.org/id/metropolitan-district-council/wolverhampton","704044","Greenhous Commercials Limited","13708233","2.25","Services - Professional Fees","190462846","25/05/2018","Fleet Services","Fleet Management","R4400"
"Wolverhampton City Council","http://opendatacommunities.org/id/metropolitan-district-council/wolverhampton","704044","Greenhous Commercials Limited","13708233","231.00","Services - Professional Fees","190462846","25/05/2018","Fleet Services","Fleet Management","R4400"
"Wolverhampton City Council","http://opendatacommunities.org/id/metropolitan-district-council/wolverhampton","704044","Greenhous Commercials Limited","13708233","115.50","Services - Professional Fees","190462846","25/05/2018","Fleet Services","Fleet Management","R4400"
"Wolverhampton City Council","http://opendatacommunities.org/id/metropolitan-district-council/wolverhampton","704044","Greenhous Commercials Limited","13708233","14.00","Services - Professional Fees","190462846","25/05/2018","Fleet Services","Fleet Management","R4400"
"Wolverhampton City Council","http://opendatacommunities.org/id/metropolitan-district-council/wolverhampton","704044","Greenhous Commercials Limited","13708233","5.78","Services - Professional Fees","190462846","25/05/2018","Fleet Services","Fleet Management","R4400"
"Wolverhampton City Council","http://opendatacommunities.org/id/metropolitan-district-council/wolverhampton","704044","Greenhous Commercials Limited","13708233","50.00","Services - Professional Fees","190462846","25/05/2018","Fleet Services","Fleet Management","R4400"
"Wolverhampton City Council","http://opendatacommunities.org/id/metropolitan-district-council/wolverhampton","704044","Greenhous Commercials Limited","13708233","113.32","Services - Professional Fees","190462846","25/05/2018","Fleet Services","Fleet Management","R4400"
"Wolverhampton City Council","http://opendatacommunities.org/id/metropolitan-district-council/wolverhampton","704044","Greenhous Commercials Limited","13708233","105.33","Services - Professional Fees","190462846","25/05/2018","Fleet Services","Fleet Management","R4400"
"Wolverhampton City Council","http://opendatacommunities.org/id/metropolitan-district-council/wolverhampton","704044","Greenhous Commercials Limited","13708233","15.15","Services - Professional Fees","190462846","25/05/2018","Fleet Services","Fleet Management","R4400"
"Wolverhampton City Council","http://opendatacommunities.org/id/metropolitan-district-council/wolverhampton","704044","Greenhous Commercials Limited","13708233","54.00","Services - Professional Fees","190462846","25/05/2018","Fleet Services","Fleet Management","R4400"
"Wolverhampton City Council","http://opendatacommunities.org/id/metropolitan-district-council/wolverhampton","704044","Greenhous Commercials Limited","13708233","28.88","Services - Professional Fees","190462846","25/05/2018","Fleet Services","Fleet Management","R4400"
"Wolverhampton City Council","http://opendatacommunities.org/id/metropolitan-district-council/wolverhampton","704044","Greenhous Commercials Limited","13708233","57.75","Services - Professional Fees","190462846","25/05/2018","Fleet Services","Fleet Management","R4400"
"Wolverhampton City Council","http://opendatacommunities.org/id/metropolitan-district-council/wolverhampton","704044","Greenhous Commercials Limited","13708233","5.78","Services - Professional Fees","190462846","25/05/2018","Fleet Services","Fleet Management","R4400"
"Wolverhampton City Council","http://opendatacommunities.org/id/metropolitan-district-council/wolverhampton","704044","Greenhous Commercials Limited","13708233","25.21","Services - Professional Fees","190462846","25/05/2018","Fleet Services","Fleet Management","R4400"
"Wolverhampton City Council","http://opendatacommunities.org/id/metropolitan-district-council/wolverhampton","704044","Greenhous Commercials Limited","13708233","5.14","Services - Professional Fees","190462846","25/05/2018","Fleet Services","Fleet Management","R4400"
"Wolverhampton City Council","http://opendatacommunities.org/id/metropolitan-district-council/wolverhampton","704044","Greenhous Commercials Limited","13708233","43.31","Services - Professional Fees","190462846","25/05/2018","Fleet Services","Fleet Management","R4400"
"Wolverhampton City Council","http://opendatacommunities.org/id/metropolitan-district-council/wolverhampton","704044","Greenhous Commercials Limited","13709478","35.00","MOT & HGV Tests","190463070","30/05/2018","Fleet Services","Fleet Management","R3005"
"Wolverhampton City Council","http://opendatacommunities.org/id/metropolitan-district-council/wolverhampton","704044","Greenhous Commercials Limited","13709478","91.00","MOT & HGV Tests","190463070","30/05/2018","Fleet Services","Fleet Management","R3005"
"Wolverhampton City Council","http://opendatacommunities.org/id/metropolitan-district-council/wolverhampton","704044","Greenhous Commercials Limited","1300517","-150.00","Equipment - Purchase","190458179","23/05/2018","Fleet Services","Fleet Management","R4000"
"Wolverhampton City Council","http://opendatacommunities.org/id/metropolitan-district-council/wolverhampton","704044","Greenhous Commercials Limited","13708403","406.17","Services - Professional Fees","190456492","11/05/2018","Fleet Services","Fleet Management","R4400"
"Wolverhampton City Council","http://opendatacommunities.org/id/metropolitan-district-council/wolverhampton","704044","Greenhous Commercials Limited","13708403","158.81","Services - Professional Fees","190456492","11/05/2018","Fleet Services","Fleet Management","R4400"
"Wolverhampton City Council","http://opendatacommunities.org/id/metropolitan-district-council/wolverhampton","704044","Greenhous Commercials Limited","13708677","15.00","Services - Professional Fees","190456495","11/05/2018","Fleet Services","Fleet Management","R4400"
"Wolverhampton City Council","http://opendatacommunities.org/id/metropolitan-district-council/wolverhampton","704044","Greenhous Commercials Limited","13708677","45.00","Services - Professional Fees","190456495","11/05/2018","Fleet Services","Fleet Management","R4400"
"Wolverhampton City Council","http://opendatacommunities.org/id/metropolitan-district-council/wolverhampton","704044","Greenhous Commercials Limited","13709198","35.00","MOT & HGV Tests","190463068","30/05/2018","Fleet Services","Fleet Management","R3005"
"Wolverhampton City Council","http://opendatacommunities.org/id/metropolitan-district-council/wolverhampton","704044","Greenhous Commercials Limited","13709198","113.00","MOT & HGV Tests","190463068","30/05/2018","Fleet Services","Fleet Management","R3005"
"Wolverhampton City Council","http://opendatacommunities.org/id/metropolitan-district-council/wolverhampton","704055","Ground Investigation & Piling Limited","34379","4,187.46","Services - Professional Fees","130215010","25/05/2018","Corporate Asset Management","Centralised Planned Maintenance","R4400"
"Wolverhampton City Council","http://opendatacommunities.org/id/metropolitan-district-council/wolverhampton","704055","Ground Investigation & Piling Limited","34304","12,807.42","Services - Professional Fees","130212630","02/05/2018","Corporate Asset Management","Centralised Planned Maintenance","R4400"
"Wolverhampton City Council","http://opendatacommunities.org/id/metropolitan-district-council/wolverhampton","704061","Guest Motors Limited","1303099","-112.01","Equipment - Purchase","190456488","23/05/2018","Fleet Services","Fleet Management","R4000"
"Wolverhampton City Council","http://opendatacommunities.org/id/metropolitan-district-council/wolverhampton","704061","Guest Motors Limited","13040832","38.89","Equipment - Purchase","190455215","09/05/2018","Fleet Services","Fleet Management","R4000"
"Wolverhampton City Council","http://opendatacommunities.org/id/metropolitan-district-council/wolverhampton","704061","Guest Motors Limited","13518031","11.50","Services - Professional Fees","190455227","09/05/2018","Fleet Services","Fleet Management","R4400"
"Wolverhampton City Council","http://opendatacommunities.org/id/metropolitan-district-council/wolverhampton","704061","Guest Motors Limited","13518031","4.25","Services - Professional Fees","190455227","09/05/2018","Fleet Services","Fleet Management","R4400"
"Wolverhampton City Council","http://opendatacommunities.org/id/metropolitan-district-council/wolverhampton","704061","Guest Motors Limited","13518031","56.87","Services - Professional Fees","190455227","09/05/2018","Fleet Services","Fleet Management","R4400"
"Wolverhampton City Council","http://opendatacommunities.org/id/metropolitan-district-council/wolverhampton","704061","Guest Motors Limited","13518031","70.93","Services - Professional Fees","190455227","09/05/2018","Fleet Services","Fleet Management","R4400"
"Wolverhampton City Council","http://opendatacommunities.org/id/metropolitan-district-council/wolverhampton","704061","Guest Motors Limited","13518031","21.36","Services - Professional Fees","190455227","09/05/2018","Fleet Services","Fleet Management","R4400"
"Wolverhampton City Council","http://opendatacommunities.org/id/metropolitan-district-council/wolverhampton","704061","Guest Motors Limited","13040807","4.09","Equipment - Purchase","190455214","09/05/2018","Fleet Services","Fleet Management","R4000"
"Wolverhampton City Council","http://opendatacommunities.org/id/metropolitan-district-council/wolverhampton","704061","Guest Motors Limited","13040807","38.31","Equipment - Purchase","190455214","09/05/2018","Fleet Services","Fleet Management","R4000"
"Wolverhampton City Council","http://opendatacommunities.org/id/metropolitan-district-council/wolverhampton","704061","Guest Motors Limited","13040807","23.49","Equipment - Purchase","190455214","09/05/2018","Fleet Services","Fleet Management","R4000"
"Wolverhampton City Council","http://opendatacommunities.org/id/metropolitan-district-council/wolverhampton","704061","Guest Motors Limited","13518031","4.25","Services - Professional Fees","190455227","09/05/2018","Fleet Services","Fleet Management","R4400"
"Wolverhampton City Council","http://opendatacommunities.org/id/metropolitan-district-council/wolverhampton","704061","Guest Motors Limited","13518031","116.16","Services - Professional Fees","190455227","09/05/2018","Fleet Services","Fleet Management","R4400"
"Wolverhampton City Council","http://opendatacommunities.org/id/metropolitan-district-council/wolverhampton","704061","Guest Motors Limited","13518031","435.00","Services - Professional Fees","190455227","09/05/2018","Fleet Services","Fleet Management","R4400"
"Wolverhampton City Council","http://opendatacommunities.org/id/metropolitan-district-council/wolverhampton","704061","Guest Motors Limited","13518038","1,083.51","Services - Professional Fees","190455228","09/05/2018","Fleet Services","Fleet Management","R4400"
"Wolverhampton City Council","http://opendatacommunities.org/id/metropolitan-district-council/wolverhampton","704061","Guest Motors Limited","13518038","261.00","Services - Professional Fees","190455228","09/05/2018","Fleet Services","Fleet Management","R4400"
"Wolverhampton City Council","http://opendatacommunities.org/id/metropolitan-district-council/wolverhampton","704061","Guest Motors Limited","13518038","218.34","Services - Professional Fees","190455228","09/05/2018","Fleet Services","Fleet Management","R4400"
"Wolverhampton City Council","http://opendatacommunities.org/id/metropolitan-district-council/wolverhampton","704061","Guest Motors Limited","13518286","87.00","Services - Professional Fees","190461315","23/05/2018","Fleet Services","Fleet Management","R4400"
"Wolverhampton City Council","http://opendatacommunities.org/id/metropolitan-district-council/wolverhampton","704061","Guest Motors Limited","13041083","38.31","Equipment - Purchase","190461312","23/05/2018","Fleet Services","Fleet Management","R4000"
"Wolverhampton City Council","http://opendatacommunities.org/id/metropolitan-district-council/wolverhampton","704061","Guest Motors Limited","13041083","23.49","Equipment - Purchase","190461312","23/05/2018","Fleet Services","Fleet Management","R4000"
"Wolverhampton City Council","http://opendatacommunities.org/id/metropolitan-district-council/wolverhampton","704061","Guest Motors Limited","13040897","61.51","Equipment - Purchase","190455216","09/05/2018","Fleet Services","Fleet Management","R4000"
"Wolverhampton City Council","http://opendatacommunities.org/id/metropolitan-district-council/wolverhampton","704061","Guest Motors Limited","13040897","151.28","Equipment - Purchase","190455216","09/05/2018","Fleet Services","Fleet Management","R4000"
"Wolverhampton City Council","http://opendatacommunities.org/id/metropolitan-district-council/wolverhampton","704061","Guest Motors Limited","13040897","102.00","Equipment - Purchase","190455216","09/05/2018","Fleet Services","Fleet Management","R4000"
"Wolverhampton City Council","http://opendatacommunities.org/id/metropolitan-district-council/wolverhampton","704079","H Jenkinson & Company Ltd","SINV00804561","10,977.12","Furniture","130216208","18/05/2018","Corporate Asset Management","Future Space Decant Area","R4004"
"Wolverhampton City Council","http://opendatacommunities.org/id/metropolitan-district-council/wolverhampton","704079","H Jenkinson & Company Ltd","SINV00804428","147.00","Furniture","130215945","16/05/2018","Safeguarding","Head of Service Quality and Safeguarding","R4004"
"Wolverhampton City Council","http://opendatacommunities.org/id/metropolitan-district-council/wolverhampton","704079","H Jenkinson & Company Ltd","SINV00801653","220.00","Furniture","130214125","02/05/2018","Looked After Children","Fostering Team & Allowances","R4004"
"Wolverhampton City Council","http://opendatacommunities.org/id/metropolitan-district-council/wolverhampton","704097","Hags-Smp Limited Rss Playmakers","057524","450.00","Equipment - R & M","130213959","09/05/2018","Environmental Maintenance","Parks - South West Area Management","R4003"
"Wolverhampton City Council","http://opendatacommunities.org/id/metropolitan-district-council/wolverhampton","704097","Hags-Smp Limited Rss Playmakers","057499","87.50","Equipment - R & M","130212935","09/05/2018","Environmental Maintenance","Parks - South West Area Management","R4003"
"Wolverhampton City Council","http://opendatacommunities.org/id/metropolitan-district-council/wolverhampton","704097","Hags-Smp Limited Rss Playmakers","057981","11.40","Equipment - R & M","130215697","30/05/2018","Environmental Maintenance","Parks - East Area Management","R4003"
"Wolverhampton City Council","http://opendatacommunities.org/id/metropolitan-district-council/wolverhampton","704097","Hags-Smp Limited Rss Playmakers","057647","416.00","Equipment - R & M","130215696","16/05/2018","Environmental Maintenance","Parks - South West Area Management","R4003"
"Wolverhampton City Council","http://opendatacommunities.org/id/metropolitan-district-council/wolverhampton","704097","Hags-Smp Limited Rss Playmakers","057637","1,679.14","Equipment - R & M","130215695","18/05/2018","Environmental Maintenance","Parks - South West Area Management","R4003"
"Wolverhampton City Council","http://opendatacommunities.org/id/metropolitan-district-council/wolverhampton","704097","Hags-Smp Limited Rss Playmakers","057425","1,679.14","Equipment - R & M","130212933","02/05/2018","Environmental Maintenance","Parks - East Area Management","R4003"
"Wolverhampton City Council","http://opendatacommunities.org/id/metropolitan-district-council/wolverhampton","704097","Hags-Smp Limited Rss Playmakers","057666","2,442.64","Equipment - R & M","130213960","16/05/2018","Environmental Maintenance","Parks / Open Spaces - Repairs & Maintenance","R4003"
"Wolverhampton City Council","http://opendatacommunities.org/id/metropolitan-district-council/wolverhampton","704097","Hags-Smp Limited Rss Playmakers","057501","11.40","Equipment - R & M","130212936","09/05/2018","Environmental Maintenance","Parks - East Area Management","R4003"
"Wolverhampton City Council","http://opendatacommunities.org/id/metropolitan-district-council/wolverhampton","704097","Hags-Smp Limited Rss Playmakers","057121","1,620.64","Equipment - R & M","130215694","18/05/2018","Environmental Maintenance","Parks - South West Area Management","R4003"
"Wolverhampton City Council","http://opendatacommunities.org/id/metropolitan-district-council/wolverhampton","704097","Hags-Smp Limited Rss Playmakers","057426","197.50","Equipment - R & M","130212934","02/05/2018","Environmental Maintenance","Parks - South West Area Management","R4003"
"Wolverhampton City Council","http://opendatacommunities.org/id/metropolitan-district-council/wolverhampton","704132","Harold L. Smith Transmissions Limited","0000255294","250.00","Equipment - Purchase","190462838","25/05/2018","Fleet Services","Fleet Management","R4000"
"Wolverhampton City Council","http://opendatacommunities.org/id/metropolitan-district-council/wolverhampton","704144","Hartshorne Motor Services Limited","2221368-01","500.00","Services - Professional Fees","190462851","25/05/2018","Fleet Services","Fleet Management","R4400"
"Wolverhampton City Council","http://opendatacommunities.org/id/metropolitan-district-council/wolverhampton","704144","Hartshorne Motor Services Limited","2221368-01","4,392.27","Services - Professional Fees","190462851","25/05/2018","Fleet Services","Fleet Management","R4400"
"Wolverhampton City Council","http://opendatacommunities.org/id/metropolitan-district-council/wolverhampton","704144","Hartshorne Motor Services Limited","2221368-01","3,189.99","Services - Professional Fees","190462851","25/05/2018","Fleet Services","Fleet Management","R4400"
"Wolverhampton City Council","http://opendatacommunities.org/id/metropolitan-district-council/wolverhampton","704160","Haymarket Publishing Services Limited","EF21658","200.00","Services - Professional Fees","130214377","18/05/2018","Commercial Services","Corporate Procurement Unit","R4400"
"Wolverhampton City Council","http://opendatacommunities.org/id/metropolitan-district-council/wolverhampton","704168","Hbinfo Limited","S/14725","635.00","Subscriptions","130214752","02/05/2018","Revenues & Benefits","Revenues","R4701"
"Wolverhampton City Council","http://opendatacommunities.org/id/metropolitan-district-council/wolverhampton","704168","Hbinfo Limited","C/14886","250.00","Training Expenses","130215204","09/05/2018","Public Service Reform","Centralised Training","R1650"
"Wolverhampton City Council","http://opendatacommunities.org/id/metropolitan-district-council/wolverhampton","704207","Heath Town Snr Citizens Welfare Proj","00018/2620180511","230.00","TPP - Day Care","190457491","16/05/2018","Older People Care Purchasing","OP Care Purchasing (Spot Placements)","R5430"
"Wolverhampton City Council","http://opendatacommunities.org/id/metropolitan-district-council/wolverhampton","704207","Heath Town Snr Citizens Welfare Proj","00018/2620180511","230.00","TPP - Day Care","190457491","16/05/2018","Older People Care Purchasing","OP Care Purchasing (Spot Placements)","R5430"
"Wolverhampton City Council","http://opendatacommunities.org/id/metropolitan-district-council/wolverhampton","704207","Heath Town Snr Citizens Welfare Proj","00018/2620180511","345.00","TPP - Day Care","190457491","16/05/2018","Learning Disabilities Care Purchasing","LD Care Purchasing (Spot Placements)","R5430"
"Wolverhampton City Council","http://opendatacommunities.org/id/metropolitan-district-council/wolverhampton","704207","Heath Town Snr Citizens Welfare Proj","00018/2620180511","184.00","TPP - Day Care","190457491","16/05/2018","Older People Care Purchasing","OP Care Purchasing (Spot Placements)","R5430"
"Wolverhampton City Council","http://opendatacommunities.org/id/metropolitan-district-council/wolverhampton","704207","Heath Town Snr Citizens Welfare Proj","00018/2620180511","184.00","TPP - Day Care","190457491","16/05/2018","Older People Care Purchasing","OP Care Purchasing (Spot Placements)","R5430"
"Wolverhampton City Council","http://opendatacommunities.org/id/metropolitan-district-council/wolverhampton","704207","Heath Town Snr Citizens Welfare Proj","00018/2620180511","345.00","TPP - Day Care","190457491","16/05/2018","Older People Care Purchasing","OP Care Purchasing (Spot Placements)","R5430"
"Wolverhampton City Council","http://opendatacommunities.org/id/metropolitan-district-council/wolverhampton","704207","Heath Town Snr Citizens Welfare Proj","00018/2620180511","92.00","TPP - Day Care","190457491","16/05/2018","Older People Care Purchasing","OP Care Purchasing (Spot Placements)","R5430"
"Wolverhampton City Council","http://opendatacommunities.org/id/metropolitan-district-council/wolverhampton","704207","Heath Town Snr Citizens Welfare Proj","00018/2620180511","230.00","TPP - Day Care","190457491","16/05/2018","Older People Care Purchasing","OP Care Purchasing (Spot Placements)","R5430"
"Wolverhampton City Council","http://opendatacommunities.org/id/metropolitan-district-council/wolverhampton","704207","Heath Town Snr Citizens Welfare Proj","00018/2620180511","345.00","TPP - Day Care","190457491","16/05/2018","Older People Care Purchasing","OP Care Purchasing (Spot Placements)","R5430"
"Wolverhampton City Council","http://opendatacommunities.org/id/metropolitan-district-council/wolverhampton","704207","Heath Town Snr Citizens Welfare Proj","00018/2620180511","230.00","TPP - Day Care","190457491","16/05/2018","Older People Care Purchasing","OP Care Purchasing (Spot Placements)","R5430"
"Wolverhampton City Council","http://opendatacommunities.org/id/metropolitan-district-council/wolverhampton","704207","Heath Town Snr Citizens Welfare Proj","00018/2620180511","115.00","TPP - Day Care","190457491","16/05/2018","Older People Care Purchasing","OP Care Purchasing (Spot Placements)","R5430"
"Wolverhampton City Council","http://opendatacommunities.org/id/metropolitan-district-council/wolverhampton","704207","Heath Town Snr Citizens Welfare Proj","00018/2620180511","230.00","TPP - Day Care","190457491","16/05/2018","Older People Care Purchasing","OP Care Purchasing (Spot Placements)","R5430"
"Wolverhampton City Council","http://opendatacommunities.org/id/metropolitan-district-council/wolverhampton","704207","Heath Town Snr Citizens Welfare Proj","00018/2620180511","115.00","TPP - Day Care","190457491","16/05/2018","Older People Care Purchasing","OP Care Purchasing (Spot Placements)","R5430"
"Wolverhampton City Council","http://opendatacommunities.org/id/metropolitan-district-council/wolverhampton","704207","Heath Town Snr Citizens Welfare Proj","00018/2620180511","23.00","TPP - Day Care","190457491","16/05/2018","Older People Care Purchasing","OP Care Purchasing (Spot Placements)","R5430"
"Wolverhampton City Council","http://opendatacommunities.org/id/metropolitan-district-council/wolverhampton","704207","Heath Town Snr Citizens Welfare Proj","00018/2620180511","322.00","TPP - Day Care","190457491","16/05/2018","Older People Care Purchasing","OP Care Purchasing (Spot Placements)","R5430"
"Wolverhampton City Council","http://opendatacommunities.org/id/metropolitan-district-council/wolverhampton","704207","Heath Town Snr Citizens Welfare Proj","00018/2620180511","115.00","TPP - Day Care","190457491","16/05/2018","Older People Care Purchasing","OP Care Purchasing (Spot Placements)","R5430"
"Wolverhampton City Council","http://opendatacommunities.org/id/metropolitan-district-council/wolverhampton","704207","Heath Town Snr Citizens Welfare Proj","00018/2620180511","46.00","TPP - Day Care","190457491","16/05/2018","Physical Disabilities Care Purchasing","PD Care Purchasing (Spot Placements)","R5430"
"Wolverhampton City Council","http://opendatacommunities.org/id/metropolitan-district-council/wolverhampton","704207","Heath Town Snr Citizens Welfare Proj","00018/2620180511","46.00","TPP - Day Care","190457491","16/05/2018","Older People Care Purchasing","OP Care Purchasing (Spot Placements)","R5430"
"Wolverhampton City Council","http://opendatacommunities.org/id/metropolitan-district-council/wolverhampton","704207","Heath Town Snr Citizens Welfare Proj","00018/2620180511","46.00","TPP - Day Care","190457491","16/05/2018","Physical Disabilities Care Purchasing","PD Care Purchasing (Spot Placements)","R5430"
"Wolverhampton City Council","http://opendatacommunities.org/id/metropolitan-district-council/wolverhampton","704207","Heath Town Snr Citizens Welfare Proj","00018/2620180511","115.00","TPP - Day Care","190457491","16/05/2018","Older People Care Purchasing","OP Care Purchasing (Spot Placements)","R5430"
"Wolverhampton City Council","http://opendatacommunities.org/id/metropolitan-district-council/wolverhampton","704207","Heath Town Snr Citizens Welfare Proj","00018/2520180517","184.00","TPP - Day Care","190459605","18/05/2018","Older People Care Purchasing","OP Care Purchasing (Spot Placements)","R5430"
"Wolverhampton City Council","http://opendatacommunities.org/id/metropolitan-district-council/wolverhampton","704207","Heath Town Snr Citizens Welfare Proj","00018/2520180517","184.00","TPP - Day Care","190459605","18/05/2018","Older People Care Purchasing","OP Care Purchasing (Spot Placements)","R5430"
"Wolverhampton City Council","http://opendatacommunities.org/id/metropolitan-district-council/wolverhampton","704207","Heath Town Snr Citizens Welfare Proj","00018/2520180517","276.00","TPP - Day Care","190459605","18/05/2018","Learning Disabilities Care Purchasing","LD Care Purchasing (Spot Placements)","R5430"
"Wolverhampton City Council","http://opendatacommunities.org/id/metropolitan-district-council/wolverhampton","704207","Heath Town Snr Citizens Welfare Proj","00018/2520180517","184.00","TPP - Day Care","190459605","18/05/2018","Older People Care Purchasing","OP Care Purchasing (Spot Placements)","R5430"
"Wolverhampton City Council","http://opendatacommunities.org/id/metropolitan-district-council/wolverhampton","704207","Heath Town Snr Citizens Welfare Proj","00018/2520180517","184.00","TPP - Day Care","190459605","18/05/2018","Older People Care Purchasing","OP Care Purchasing (Spot Placements)","R5430"
"Wolverhampton City Council","http://opendatacommunities.org/id/metropolitan-district-council/wolverhampton","704207","Heath Town Snr Citizens Welfare Proj","00018/2520180517","276.00","TPP - Day Care","190459605","18/05/2018","Older People Care Purchasing","OP Care Purchasing (Spot Placements)","R5430"
"Wolverhampton City Council","http://opendatacommunities.org/id/metropolitan-district-council/wolverhampton","704207","Heath Town Snr Citizens Welfare Proj","00018/2520180517","184.00","TPP - Day Care","190459605","18/05/2018","Older People Care Purchasing","OP Care Purchasing (Spot Placements)","R5430"
"Wolverhampton City Council","http://opendatacommunities.org/id/metropolitan-district-council/wolverhampton","704207","Heath Town Snr Citizens Welfare Proj","00018/2520180517","276.00","TPP - Day Care","190459605","18/05/2018","Older People Care Purchasing","OP Care Purchasing (Spot Placements)","R5430"
"Wolverhampton City Council","http://opendatacommunities.org/id/metropolitan-district-council/wolverhampton","704207","Heath Town Snr Citizens Welfare Proj","00018/2520180517","184.00","TPP - Day Care","190459605","18/05/2018","Older People Care Purchasing","OP Care Purchasing (Spot Placements)","R5430"
"Wolverhampton City Council","http://opendatacommunities.org/id/metropolitan-district-council/wolverhampton","704207","Heath Town Snr Citizens Welfare Proj","00018/2520180517","92.00","TPP - Day Care","190459605","18/05/2018","Older People Care Purchasing","OP Care Purchasing (Spot Placements)","R5430"
"Wolverhampton City Council","http://opendatacommunities.org/id/metropolitan-district-council/wolverhampton","704207","Heath Town Snr Citizens Welfare Proj","00018/2520180517","184.00","TPP - Day Care","190459605","18/05/2018","Older People Care Purchasing","OP Care Purchasing (Spot Placements)","R5430"
"Wolverhampton City Council","http://opendatacommunities.org/id/metropolitan-district-council/wolverhampton","704207","Heath Town Snr Citizens Welfare Proj","00018/2520180517","92.00","TPP - Day Care","190459605","18/05/2018","Older People Care Purchasing","OP Care Purchasing (Spot Placements)","R5430"
"Wolverhampton City Council","http://opendatacommunities.org/id/metropolitan-district-council/wolverhampton","704207","Heath Town Snr Citizens Welfare Proj","00018/2520180517","46.00","TPP - Day Care","190459605","18/05/2018","Older People Care Purchasing","OP Care Purchasing (Spot Placements)","R5430"
"Wolverhampton City Council","http://opendatacommunities.org/id/metropolitan-district-council/wolverhampton","704207","Heath Town Snr Citizens Welfare Proj","00018/2520180517","253.00","TPP - Day Care","190459605","18/05/2018","Older People Care Purchasing","OP Care Purchasing (Spot Placements)","R5430"
"Wolverhampton City Council","http://opendatacommunities.org/id/metropolitan-district-council/wolverhampton","704207","Heath Town Snr Citizens Welfare Proj","00018/2520180517","92.00","TPP - Day Care","190459605","18/05/2018","Older People Care Purchasing","OP Care Purchasing (Spot Placements)","R5430"
"Wolverhampton City Council","http://opendatacommunities.org/id/metropolitan-district-council/wolverhampton","704207","Heath Town Snr Citizens Welfare Proj","00018/2520180517","161.00","TPP - Day Care","190459605","18/05/2018","Older People Care Purchasing","OP Care Purchasing (Spot Placements)","R5430"
"Wolverhampton City Council","http://opendatacommunities.org/id/metropolitan-district-council/wolverhampton","704207","Heath Town Snr Citizens Welfare Proj","00018/2520180517","23.00","TPP - Day Care","190459605","18/05/2018","Physical Disabilities Care Purchasing","PD Care Purchasing (Spot Placements)","R5430"
"Wolverhampton City Council","http://opendatacommunities.org/id/metropolitan-district-council/wolverhampton","704207","Heath Town Snr Citizens Welfare Proj","00018/2520180517","92.00","TPP - Day Care","190459605","18/05/2018","Older People Care Purchasing","OP Care Purchasing (Spot Placements)","R5430"
"Wolverhampton City Council","http://opendatacommunities.org/id/metropolitan-district-council/wolverhampton","704207","Heath Town Snr Citizens Welfare Proj","00018/2520180517","46.00","TPP - Day Care","190459605","18/05/2018","Physical Disabilities Care Purchasing","PD Care Purchasing (Spot Placements)","R5430"
"Wolverhampton City Council","http://opendatacommunities.org/id/metropolitan-district-council/wolverhampton","704248","Higgs & Sons Solicitors","74921126","540.00","Services - Professional Fees","130213706","16/05/2018","Human Resources","HR Advice","R4400"
"Wolverhampton City Council","http://opendatacommunities.org/id/metropolitan-district-council/wolverhampton","704266","Hills Coaches Limited","32161","820.00","Client Transport","130204017","30/05/2018","School Planning & Resources","Towers Outdoor Education Centre","R3042"
"Wolverhampton City Council","http://opendatacommunities.org/id/metropolitan-district-council/wolverhampton","704266","Hills Coaches Limited","32728","1,000.00","Equipment - Hire","130215698","25/05/2018","Public Service Reform","Civic Events","R4001"
"Wolverhampton City Council","http://opendatacommunities.org/id/metropolitan-district-council/wolverhampton","704266","Hills Coaches Limited","32262","860.00","Client Transport","130206045","04/05/2018","School Planning & Resources","Towers Outdoor Education Centre","R3042"
"Wolverhampton City Council","http://opendatacommunities.org/id/metropolitan-district-council/wolverhampton","704266","Hills Coaches Limited","32766","250.00","Client Transport","130216209","23/05/2018","Public Service Reform","Civic Events","R3042"
"Wolverhampton City Council","http://opendatacommunities.org/id/metropolitan-district-council/wolverhampton","704266","Hills Coaches Limited","32629","120.00","Client Transport","130215016","09/05/2018","Governance Services","Democratic Support","R3042"
"Wolverhampton City Council","http://opendatacommunities.org/id/metropolitan-district-council/wolverhampton","704266","Hills Coaches Limited","32066","900.00","Client Transport","130203186","02/05/2018","School Planning & Resources","Towers Outdoor Education Centre","R3042"
"Wolverhampton City Council","http://opendatacommunities.org/id/metropolitan-district-council/wolverhampton","704266","Hills Coaches Limited","32705","1,380.00","Client Transport","130215017","09/05/2018","Special Educational Needs","Special - Transport","R3042"
"Wolverhampton City Council","http://opendatacommunities.org/id/metropolitan-district-council/wolverhampton","704271","Hilton Main Construction Limited","31463","21,589.34","R&M - Departmental response (external)","130216103","23/05/2018","Highways Maintenance","Fencing & Guard Rails","R2003"
"Wolverhampton City Council","http://opendatacommunities.org/id/metropolitan-district-council/wolverhampton","704271","Hilton Main Construction Limited","32447","1,200.00","Construction and Conversion","130213524","11/05/2018","-","GF - Maintenance of Non Highway Structures","C1100"
"Wolverhampton City Council","http://opendatacommunities.org/id/metropolitan-district-council/wolverhampton","704271","Hilton Main Construction Limited","32588","14,145.84","R&M - Departmental response (external)","130215029","25/05/2018","Highways Maintenance","Patching","R2003"
"Wolverhampton City Council","http://opendatacommunities.org/id/metropolitan-district-council/wolverhampton","704271","Hilton Main Construction Limited","32590","7,010.00","R&M - Departmental response (external)","130215206","25/05/2018","Highways Maintenance","Patching","R2003"
"Wolverhampton City Council","http://opendatacommunities.org/id/metropolitan-district-council/wolverhampton","704271","Hilton Main Construction Limited","32592","2,137.96","R&M - Departmental response (external)","130215208","25/05/2018","Highways Maintenance","Brook course, Culvert & Subway Maintenance","R2003"
"Wolverhampton City Council","http://opendatacommunities.org/id/metropolitan-district-council/wolverhampton","704271","Hilton Main Construction Limited","32587","2,825.55","R&M - Departmental response (external)","130215028","25/05/2018","Highways Maintenance","Patching","R2003"
"Wolverhampton City Council","http://opendatacommunities.org/id/metropolitan-district-council/wolverhampton","704271","Hilton Main Construction Limited","32563","371.79","R&M - Departmental response (external)","130215023","25/05/2018","Highways Maintenance","Planned Highways Maintenance","R2003"
"Wolverhampton City Council","http://opendatacommunities.org/id/metropolitan-district-council/wolverhampton","704271","Hilton Main Construction Limited","32582","1,740.00","Hire of Vehicles","190455251","09/05/2018","Fleet Services","Fleet Management","R3200"
"Wolverhampton City Council","http://opendatacommunities.org/id/metropolitan-district-council/wolverhampton","704271","Hilton Main Construction Limited","32352","440.00","R&M - Departmental response (external)","130211565","02/05/2018","Markets","Wholesale Market Facilities Management","R2003"
"Wolverhampton City Council","http://opendatacommunities.org/id/metropolitan-district-council/wolverhampton","704271","Hilton Main Construction Limited","32051","2,875.92","R&M - Departmental response (external)","130205499","04/05/2018","Highways Maintenance","Gully Sweeping","R2003"
"Wolverhampton City Council","http://opendatacommunities.org/id/metropolitan-district-council/wolverhampton","704271","Hilton Main Construction Limited","32500","650.00","R&M - Departmental planned (external)","130215018","23/05/2018","Markets","Wholesale Market Facilities Management","R2001"
"Wolverhampton City Council","http://opendatacommunities.org/id/metropolitan-district-council/wolverhampton","704271","Hilton Main Construction Limited","31851","960.00","R&M - Departmental response (external)","130215789","25/05/2018","Highways Maintenance","Patching","R2003"
"Wolverhampton City Council","http://opendatacommunities.org/id/metropolitan-district-council/wolverhampton","704271","Hilton Main Construction Limited","32596","15,146.32","R&M - Departmental response (external)","130215212","25/05/2018","Highways Maintenance","Planned Highways Maintenance","R2003"
"Wolverhampton City Council","http://opendatacommunities.org/id/metropolitan-district-council/wolverhampton","704271","Hilton Main Construction Limited","32594","2,002.81","R&M - Departmental response (external)","130215210","25/05/2018","Highways Maintenance","Highway & Land Drainage","R2003"
"Wolverhampton City Council","http://opendatacommunities.org/id/metropolitan-district-council/wolverhampton","704271","Hilton Main Construction Limited","32593","11,045.63","R&M - Departmental response (external)","130215209","25/05/2018","Highways Maintenance","Highway & Land Drainage","R2003"
"Wolverhampton City Council","http://opendatacommunities.org/id/metropolitan-district-council/wolverhampton","704271","Hilton Main Construction Limited","32584","2,306.50","R&M - Departmental response (external)","130215025","25/05/2018","Highways Maintenance","Patching","R2003"
"Wolverhampton City Council","http://opendatacommunities.org/id/metropolitan-district-council/wolverhampton","704271","Hilton Main Construction Limited","32435","18,006.67","R&M - Departmental response (external)","130212760","02/05/2018","Highways Maintenance","Fencing & Guard Rails","R2003"
"Wolverhampton City Council","http://opendatacommunities.org/id/metropolitan-district-council/wolverhampton","704271","Hilton Main Construction Limited","32583","1,740.00","Hire of Vehicles","190455252","09/05/2018","Fleet Services","Fleet Management","R3200"
"Wolverhampton City Council","http://opendatacommunities.org/id/metropolitan-district-council/wolverhampton","704271","Hilton Main Construction Limited","31367","6,240.00","R&M - Departmental response (external)","130216102","25/05/2018","Highways Maintenance","Patching","R2003"
"Wolverhampton City Council","http://opendatacommunities.org/id/metropolitan-district-council/wolverhampton","704271","Hilton Main Construction Limited","31687","20,745.53","R&M - Departmental response (external)","130216104","25/05/2018","Highways Maintenance","Brook course, Culvert & Subway Maintenance","R2003"
"Wolverhampton City Council","http://opendatacommunities.org/id/metropolitan-district-council/wolverhampton","704271","Hilton Main Construction Limited","32585","2,250.72","R&M - Departmental response (external)","130215026","25/05/2018","Highways Maintenance","Gully Sweeping","R2003"
"Wolverhampton City Council","http://opendatacommunities.org/id/metropolitan-district-council/wolverhampton","704271","Hilton Main Construction Limited","32539","8,127.50","R&M - Departmental response (external)","130215022","25/05/2018","Highways Maintenance","Planned Highways Maintenance","R2003"
"Wolverhampton City Council","http://opendatacommunities.org/id/metropolitan-district-council/wolverhampton","704271","Hilton Main Construction Limited","32622","769.12","R&M - Departmental response (external)","130215699","25/05/2018","Highways Maintenance","Planned Highways Maintenance","R2003"
"Wolverhampton City Council","http://opendatacommunities.org/id/metropolitan-district-council/wolverhampton","704271","Hilton Main Construction Limited","32510","3,840.00","Construction and Conversion","130215020","23/05/2018","-","Integrated Transport","C1100"
"Wolverhampton City Council","http://opendatacommunities.org/id/metropolitan-district-council/wolverhampton","704271","Hilton Main Construction Limited","32533","382.13","R&M - Departmental response (external)","130215021","23/05/2018","Highways Maintenance","Planned Highways Maintenance","R2003"
"Wolverhampton City Council","http://opendatacommunities.org/id/metropolitan-district-council/wolverhampton","704271","Hilton Main Construction Limited","32456","2,811.82","R&M - Departmental response (external)","130214128","16/05/2018","Environmental Maintenance","Parks - Ranger Service","R2003"
"Wolverhampton City Council","http://opendatacommunities.org/id/metropolitan-district-council/wolverhampton","704271","Hilton Main Construction Limited","32579","5,879.94","Construction and Conversion","130215024","25/05/2018","-","Safety Programme","C1100"
"Wolverhampton City Council","http://opendatacommunities.org/id/metropolitan-district-council/wolverhampton","704271","Hilton Main Construction Limited","32591","3,876.24","R&M - Departmental response (external)","130215207","25/05/2018","Highways Maintenance","Winter Maintenance","R2003"
"Wolverhampton City Council","http://opendatacommunities.org/id/metropolitan-district-council/wolverhampton","704271","Hilton Main Construction Limited","32625","-2,250.72","R&M - Departmental response (external)","130217067","25/05/2018","Highways Maintenance","Gully Sweeping","R2003"
"Wolverhampton City Council","http://opendatacommunities.org/id/metropolitan-district-council/wolverhampton","704271","Hilton Main Construction Limited","32595","445.90","R&M - Departmental response (external)","130215211","25/05/2018","Highways Maintenance","Winter Maintenance","R2003"
"Wolverhampton City Council","http://opendatacommunities.org/id/metropolitan-district-council/wolverhampton","704271","Hilton Main Construction Limited","32586","2,250.72","R&M - Departmental response (external)","130215027","25/05/2018","Highways Maintenance","Gully Sweeping","R2003"
"Wolverhampton City Council","http://opendatacommunities.org/id/metropolitan-district-council/wolverhampton","704271","Hilton Main Construction Limited","32589","8,077.58","R&M - Departmental response (external)","130215205","25/05/2018","Highways Maintenance","Patching","R2003"
"Wolverhampton City Council","http://opendatacommunities.org/id/metropolitan-district-council/wolverhampton","704271","Hilton Main Construction Limited","32502","359.07","R&M - Departmental response (external)","130215019","23/05/2018","Highways Maintenance","Planned Highways Maintenance","R2003"
"Wolverhampton City Council","http://opendatacommunities.org/id/metropolitan-district-council/wolverhampton","704271","Hilton Main Construction Limited","32420","6,846.13","R&M - Departmental response (external)","130213156","23/05/2018","Highways Maintenance","Brook course, Culvert & Subway Maintenance","R2003"
"Wolverhampton City Council","http://opendatacommunities.org/id/metropolitan-district-council/wolverhampton","704271","Hilton Main Construction Limited","32381","1,200.00","R&M - Departmental response (external)","130212002","02/05/2018","Highways Maintenance","Patching","R2003"
"Wolverhampton City Council","http://opendatacommunities.org/id/metropolitan-district-council/wolverhampton","704271","Hilton Main Construction Limited","32354","385.00","R&M - Departmental response (external)","130211567","02/05/2018","Facilities Management","Hickman Avenue Depot","R2003"
"Wolverhampton City Council","http://opendatacommunities.org/id/metropolitan-district-council/wolverhampton","704289","HMCTS","Spencer001","400.00","Services - Fees and Charges","190453029","02/05/2018","Safeguarding","Court of Protection, Funerals and Protection of Property","R4401"
"Wolverhampton City Council","http://opendatacommunities.org/id/metropolitan-district-council/wolverhampton","704289","HMCTS","PRICE002","400.00","Services - Fees and Charges","190457832","16/05/2018","Safeguarding","Court of Protection, Funerals and Protection of Property","R4401"
"Wolverhampton City Council","http://opendatacommunities.org/id/metropolitan-district-council/wolverhampton","704318","Homepoint Estate Agents","2657","1,104.00","No Recourse to Public Funds","130214380","02/05/2018","Child Protection","CIN/CP Social Work Unit - Area 3","R6314"
"Wolverhampton City Council","http://opendatacommunities.org/id/metropolitan-district-council/wolverhampton","704323","Hopcraft Memorials Limited","HM0366","373.00","Materials","130215030","09/05/2018","Bereavement Services","Cemeteries","R4007"
"Wolverhampton City Council","http://opendatacommunities.org/id/metropolitan-district-council/wolverhampton","704323","Hopcraft Memorials Limited","HM0365","217.00","Materials","130214411","02/05/2018","Bereavement Services","Cemeteries","R4007"
"Wolverhampton City Council","http://opendatacommunities.org/id/metropolitan-district-council/wolverhampton","704324","Hope Community Project Wolverhampton","H00029","2,600.00","TPP - Social Care Support Services","130215791","18/05/2018","Early Intervention","Transformation Challenge Award","R5501"
"Wolverhampton City Council","http://opendatacommunities.org/id/metropolitan-district-council/wolverhampton","704324","Hope Community Project Wolverhampton","H00028","1,742.00","TPP - Social Care Support Services","130214622","11/05/2018","Early Intervention","Transformation Challenge Award","R5501"
"Wolverhampton City Council","http://opendatacommunities.org/id/metropolitan-district-council/wolverhampton","704328","Horizon Care & Education Group Limited","9653","12,675.00","TPP - Independent Schools","130217261","25/05/2018","Special Educational Needs","SEN Education OOC","R5036"
"Wolverhampton City Council","http://opendatacommunities.org/id/metropolitan-district-council/wolverhampton","704328","Horizon Care & Education Group Limited","9642","12,675.00","TPP - Independent Schools","130217070","23/05/2018","Special Educational Needs","SEN Education OOC","R5036"
"Wolverhampton City Council","http://opendatacommunities.org/id/metropolitan-district-council/wolverhampton","704328","Horizon Care & Education Group Limited","9650","12,675.00","TPP - Independent Schools","130217260","25/05/2018","Special Educational Needs","SEN Education OOC","R5036"
"Wolverhampton City Council","http://opendatacommunities.org/id/metropolitan-district-council/wolverhampton","704328","Horizon Care & Education Group Limited","9747","6,695.00","TPP - Independent Schools","130217346","25/05/2018","Special Educational Needs","SEN Education OOC","R5036"
"Wolverhampton City Council","http://opendatacommunities.org/id/metropolitan-district-council/wolverhampton","704328","Horizon Care & Education Group Limited","10324","7,800.00","TPP - Independent Schools","130216447","18/05/2018","Special Educational Needs","SEN Education OOC","R5036"
"Wolverhampton City Council","http://opendatacommunities.org/id/metropolitan-district-council/wolverhampton","704332","Hospital Direct (Marketing)Limited","69233","81.50","Equipment - Purchase","130213330","16/05/2018","Independent Living Service","Independent Living Service","R4000"
"Wolverhampton City Council","http://opendatacommunities.org/id/metropolitan-district-council/wolverhampton","704380","Hydrop E.C.S.","IV20571","425.00","R&M - Departmental planned (external)","130216105","16/05/2018","Maintenance Programme","Centralised R&M","R2001"
"Wolverhampton City Council","http://opendatacommunities.org/id/metropolitan-district-council/wolverhampton","704401","Ian Livie","INV10611","885.00","Equipment - Hire","130213167","09/05/2018","Visitor Economy","Civic & Wulfrun In-House Promotions","R4001"
"Wolverhampton City Council","http://opendatacommunities.org/id/metropolitan-district-council/wolverhampton","704474","Industrial Scales (UK) Limited","C146880","75.00","Equipment - R & M","130215794","16/05/2018","Learning Disability Provider","Support Plus","R4003"
"Wolverhampton City Council","http://opendatacommunities.org/id/metropolitan-district-council/wolverhampton","704489","Initial Washroom Hygiene Ltd(Solutions)","32706361","63.19","Cleaning Supplies and Materials","130213711","09/05/2018","Facilities Management","Hickman Avenue Depot","R2705"
"Wolverhampton City Council","http://opendatacommunities.org/id/metropolitan-district-council/wolverhampton","704489","Initial Washroom Hygiene Ltd(Solutions)","32706360","73.53","Cleaning Supplies and Materials","130213821","09/05/2018","Facilities Management","Culwell Street Depot","R2705"
"Wolverhampton City Council","http://opendatacommunities.org/id/metropolitan-district-council/wolverhampton","704489","Initial Washroom Hygiene Ltd(Solutions)","32612427","22.89","Cleaning Supplies and Materials","130217461","30/05/2018","Markets","Bilston Market and Licensed Operations","R2705"
"Wolverhampton City Council","http://opendatacommunities.org/id/metropolitan-district-council/wolverhampton","704489","Initial Washroom Hygiene Ltd(Solutions)","32584650","22.89","Cleaning Supplies and Materials","130217460","30/05/2018","Markets","Bilston Market and Licensed Operations","R2705"
"Wolverhampton City Council","http://opendatacommunities.org/id/metropolitan-district-council/wolverhampton","704489","Initial Washroom Hygiene Ltd(Solutions)","32550586","22.89","Cleaning Supplies and Materials","130217459","30/05/2018","Markets","Bilston Market and Licensed Operations","R2705"
"Wolverhampton City Council","http://opendatacommunities.org/id/metropolitan-district-council/wolverhampton","704489","Initial Washroom Hygiene Ltd(Solutions)","32706359","20.13","Cleaning Supplies and Materials","130213710","23/05/2018","Bereavement Services","Crematorium","R2705"
"Wolverhampton City Council","http://opendatacommunities.org/id/metropolitan-district-council/wolverhampton","704489","Initial Washroom Hygiene Ltd(Solutions)","32612425","36.44","Cleaning Supplies and Materials","130213331","11/05/2018","Adults Assessment & Care Management North","Assessment Team (North)","R2705"
"Wolverhampton City Council","http://opendatacommunities.org/id/metropolitan-district-council/wolverhampton","704514","Institute Of Licensing Limited","23668","600.00","Subscriptions","130215946","16/05/2018","Licensing","Licensing - Private Hire Vehicles","R4701"
"Wolverhampton City Council","http://opendatacommunities.org/id/metropolitan-district-council/wolverhampton","704524","Integrated Water Services Limited","CD200083162","294.00","R&M - Departmental planned (external)","130214623","23/05/2018","Maintenance Programme","Centralised R&M","R2001"
"Wolverhampton City Council","http://opendatacommunities.org/id/metropolitan-district-council/wolverhampton","704524","Integrated Water Services Limited","CD200083648","205.64","R&M - Departmental planned (external)","130215213","30/05/2018","Maintenance Programme","Centralised R&M","R2001"
"Wolverhampton City Council","http://opendatacommunities.org/id/metropolitan-district-council/wolverhampton","704524","Integrated Water Services Limited","CD200083648","101.11","R&M - Departmental planned (external)","130215213","30/05/2018","Maintenance Programme","Centralised R&M","R2001"
"Wolverhampton City Council","http://opendatacommunities.org/id/metropolitan-district-council/wolverhampton","704545","Interwaste Municipal Limitedc/O Fleet Ca","26981","79.56","Equipment - Purchase","190455246","09/05/2018","Fleet Services","Fleet Management","R4000"
"Wolverhampton City Council","http://opendatacommunities.org/id/metropolitan-district-council/wolverhampton","704545","Interwaste Municipal Limitedc/O Fleet Ca","27169","210.91","Equipment - Purchase","190462855","25/05/2018","Fleet Services","Fleet Management","R4000"
"Wolverhampton City Council","http://opendatacommunities.org/id/metropolitan-district-council/wolverhampton","704545","Interwaste Municipal Limitedc/O Fleet Ca","27135","170.00","Equipment - Purchase","190462853","25/05/2018","Fleet Services","Fleet Management","R4000"
"Wolverhampton City Council","http://opendatacommunities.org/id/metropolitan-district-council/wolverhampton","704545","Interwaste Municipal Limitedc/O Fleet Ca","27036","22.45","Equipment - Purchase","190455248","09/05/2018","Fleet Services","Fleet Management","R4000"
"Wolverhampton City Council","http://opendatacommunities.org/id/metropolitan-district-council/wolverhampton","704545","Interwaste Municipal Limitedc/O Fleet Ca","27075","152.80","Equipment - Purchase","190462852","25/05/2018","Fleet Services","Fleet Management","R4000"
"Wolverhampton City Council","http://opendatacommunities.org/id/metropolitan-district-council/wolverhampton","704545","Interwaste Municipal Limitedc/O Fleet Ca","27111","71.59","Equipment - Purchase","190458189","16/05/2018","Fleet Services","Fleet Management","R4000"
"Wolverhampton City Council","http://opendatacommunities.org/id/metropolitan-district-council/wolverhampton","704545","Interwaste Municipal Limitedc/O Fleet Ca","26874","117.50","Equipment - Purchase","190455245","09/05/2018","Fleet Services","Fleet Management","R4000"
"Wolverhampton City Council","http://opendatacommunities.org/id/metropolitan-district-council/wolverhampton","704545","Interwaste Municipal Limitedc/O Fleet Ca","26874","76.40","Equipment - Purchase","190455245","09/05/2018","Fleet Services","Fleet Management","R4000"
"Wolverhampton City Council","http://opendatacommunities.org/id/metropolitan-district-council/wolverhampton","704545","Interwaste Municipal Limitedc/O Fleet Ca","26874","210.91","Equipment - Purchase","190455245","09/05/2018","Fleet Services","Fleet Management","R4000"
"Wolverhampton City Council","http://opendatacommunities.org/id/metropolitan-district-council/wolverhampton","704545","Interwaste Municipal Limitedc/O Fleet Ca","26874","170.00","Equipment - Purchase","190455245","09/05/2018","Fleet Services","Fleet Management","R4000"
"Wolverhampton City Council","http://opendatacommunities.org/id/metropolitan-district-council/wolverhampton","704545","Interwaste Municipal Limitedc/O Fleet Ca","26874","71.59","Equipment - Purchase","190455245","09/05/2018","Fleet Services","Fleet Management","R4000"
"Wolverhampton City Council","http://opendatacommunities.org/id/metropolitan-district-council/wolverhampton","704545","Interwaste Municipal Limitedc/O Fleet Ca","27159","72.50","Equipment - Purchase","190462854","25/05/2018","Fleet Services","Fleet Management","R4000"
"Wolverhampton City Council","http://opendatacommunities.org/id/metropolitan-district-council/wolverhampton","704545","Interwaste Municipal Limitedc/O Fleet Ca","27159","6.06","Equipment - Purchase","190462854","25/05/2018","Fleet Services","Fleet Management","R4000"
"Wolverhampton City Council","http://opendatacommunities.org/id/metropolitan-district-council/wolverhampton","704545","Interwaste Municipal Limitedc/O Fleet Ca","27159","39.20","Equipment - Purchase","190462854","25/05/2018","Fleet Services","Fleet Management","R4000"
"Wolverhampton City Council","http://opendatacommunities.org/id/metropolitan-district-council/wolverhampton","704545","Interwaste Municipal Limitedc/O Fleet Ca","27159","22.45","Equipment - Purchase","190462854","25/05/2018","Fleet Services","Fleet Management","R4000"
"Wolverhampton City Council","http://opendatacommunities.org/id/metropolitan-district-council/wolverhampton","704545","Interwaste Municipal Limitedc/O Fleet Ca","27159","71.59","Equipment - Purchase","190462854","25/05/2018","Fleet Services","Fleet Management","R4000"
"Wolverhampton City Council","http://opendatacommunities.org/id/metropolitan-district-council/wolverhampton","704545","Interwaste Municipal Limitedc/O Fleet Ca","27027","210.91","Equipment - Purchase","190455247","09/05/2018","Fleet Services","Fleet Management","R4000"
"Wolverhampton City Council","http://opendatacommunities.org/id/metropolitan-district-council/wolverhampton","704559","IOSH Services Limited","ISL208161","220.00","Training Expenses","130217462","30/05/2018","Adult Education","Direct Delivery Team ( L.& D.)","R1650"
"Wolverhampton City Council","http://opendatacommunities.org/id/metropolitan-district-council/wolverhampton","704567","IRRV Services Limited","A124621","401.66","Books","130213168","09/05/2018","Revenues & Benefits","Revenues","R4309"
"Wolverhampton City Council","http://opendatacommunities.org/id/metropolitan-district-council/wolverhampton","704567","IRRV Services Limited","A124622","412.50","Books","130213169","09/05/2018","Revenues & Benefits","Revenues","R4309"
"Wolverhampton City Council","http://opendatacommunities.org/id/metropolitan-district-council/wolverhampton","704567","IRRV Services Limited","A124671","209.17","Books","130214131","16/05/2018","Revenues & Benefits","Revenues","R4309"
"Wolverhampton City Council","http://opendatacommunities.org/id/metropolitan-district-council/wolverhampton","704593","J Edwards Glass","0000102280","458.00","R&M - Departmental planned (external)","130216449","23/05/2018","Facilities Management","Caretakers Community Centre","R2001"
"Wolverhampton City Council","http://opendatacommunities.org/id/metropolitan-district-council/wolverhampton","704593","J Edwards Glass","0000102262","207.99","R&M - Departmental planned (external)","130215526","18/05/2018","Facilities Management","Management of Vacant Properties","R2001"
"Wolverhampton City Council","http://opendatacommunities.org/id/metropolitan-district-council/wolverhampton","704593","J Edwards Glass","0000102251","75.00","Construction and Conversion","130215700","16/05/2018","-","Sports Investment Strategy","C1100"
"Wolverhampton City Council","http://opendatacommunities.org/id/metropolitan-district-council/wolverhampton","704605","J Lacey Steeplejacks Contractors Limited","20030","75.00","Fixtures and Fittings - Purchases","130216450","23/05/2018","Maintenance Programme","Centralised R&M","R2500"
"Wolverhampton City Council","http://opendatacommunities.org/id/metropolitan-district-council/wolverhampton","704605","J Lacey Steeplejacks Contractors Limited","20004","925.00","Fixtures and Fittings - Purchases","130214753","04/05/2018","Maintenance Programme","Centralised R&M","R2500"
"Wolverhampton City Council","http://opendatacommunities.org/id/metropolitan-district-council/wolverhampton","704605","J Lacey Steeplejacks Contractors Limited","20016","125.00","Fixtures and Fittings - Purchases","130215031","11/05/2018","Maintenance Programme","Centralised R&M","R2500"
"Wolverhampton City Council","http://opendatacommunities.org/id/metropolitan-district-council/wolverhampton","704605","J Lacey Steeplejacks Contractors Limited","20031","2,175.00","Fixtures and Fittings - Purchases","130216451","23/05/2018","Maintenance Programme","Centralised R&M","R2500"
"Wolverhampton City Council","http://opendatacommunities.org/id/metropolitan-district-council/wolverhampton","704612","J P Lennard Limited","887882","103.44","Equipment - Purchase","130212015","02/05/2018","Leisure Services","Bert Williams Leisure Centre","R4000"
"Wolverhampton City Council","http://opendatacommunities.org/id/metropolitan-district-council/wolverhampton","704612","J P Lennard Limited","889627","168.81","Equipment - Purchase","130213525","16/05/2018","Leisure Services","Bert Williams Leisure Centre","R4000"
"Wolverhampton City Council","http://opendatacommunities.org/id/metropolitan-district-council/wolverhampton","704612","J P Lennard Limited","887925","43.15","Equipment - Purchase","130212016","02/05/2018","Leisure Services","Central Baths","R4000"
"Wolverhampton City Council","http://opendatacommunities.org/id/metropolitan-district-council/wolverhampton","704617","J S Bassi T/A Penn Radio Cars","215","594.00","Client Transport","130216453","18/05/2018","Special Educational Needs","Special - Transport","R3042"
"Wolverhampton City Council","http://opendatacommunities.org/id/metropolitan-district-council/wolverhampton","704617","J S Bassi T/A Penn Radio Cars","217","405.00","Client Transport","130216454","18/05/2018","Special Educational Needs","Special - Transport","R3042"
"Wolverhampton City Council","http://opendatacommunities.org/id/metropolitan-district-council/wolverhampton","704640","Jackdaw (Tools) Limited","JV405460","22.61","Equipment - Purchase","190455316","09/05/2018","Fleet Services","Fleet Management","R4000"
"Wolverhampton City Council","http://opendatacommunities.org/id/metropolitan-district-council/wolverhampton","704648","Jacksons Marquee Hire Limited","18004","1,748.00","Equipment - Hire","130212249","09/05/2018","Visitor Economy","Vaisakhi","R4001"
"Wolverhampton City Council","http://opendatacommunities.org/id/metropolitan-district-council/wolverhampton","704649","Jacobs U.K.Limited","B1019000-220-011","8,719.88","Construction and Conversion","130215225","23/05/2018","-","Decent Homes - Stock Improvements","C1100"
"Wolverhampton City Council","http://opendatacommunities.org/id/metropolitan-district-council/wolverhampton","704649","Jacobs U.K.Limited","B1019000-220-016","361.20","Construction and Conversion","130215230","23/05/2018","-","Decent Homes - Stock Improvements","C1100"
"Wolverhampton City Council","http://opendatacommunities.org/id/metropolitan-district-council/wolverhampton","704649","Jacobs U.K.Limited","B1019000-220-018","8,561.61","Construction and Conversion","130215232","23/05/2018","-","Decent Homes - Stock Improvements","C1100"
"Wolverhampton City Council","http://opendatacommunities.org/id/metropolitan-district-council/wolverhampton","704649","Jacobs U.K.Limited","B1019000-220-021","240.85","Services - Professional Fees","130215235","23/05/2018","Schools","Pupil Referral Units - Orchard Centre","R4400"
"Wolverhampton City Council","http://opendatacommunities.org/id/metropolitan-district-council/wolverhampton","704649","Jacobs U.K.Limited","B1019000-220-013","7,007.79","Construction and Conversion","130215227","23/05/2018","-","Decent Homes - Stock Improvements","C1100"
"Wolverhampton City Council","http://opendatacommunities.org/id/metropolitan-district-council/wolverhampton","704649","Jacobs U.K.Limited","B1019000-220-008","252.84","Services - Professional Fees","130215222","23/05/2018","Facilities Management","Management of Vacant Properties","R4400"
"Wolverhampton City Council","http://opendatacommunities.org/id/metropolitan-district-council/wolverhampton","704649","Jacobs U.K.Limited","B1018000-219-068CR","-6,441.00","Services - Professional Fees","130213826","23/05/2018","Housing Revenue Account","HRA General","R4400"
"Wolverhampton City Council","http://opendatacommunities.org/id/metropolitan-district-council/wolverhampton","704649","Jacobs U.K.Limited","B1019000-220-015","5,442.82","Construction and Conversion","130215229","23/05/2018","-","Decent Homes - Stock Improvements","C1100"
"Wolverhampton City Council","http://opendatacommunities.org/id/metropolitan-district-council/wolverhampton","704649","Jacobs U.K.Limited","B1019000-220-017","361.20","Construction and Conversion","130215231","23/05/2018","-","Decent Homes - Stock Improvements","C1100"
"Wolverhampton City Council","http://opendatacommunities.org/id/metropolitan-district-council/wolverhampton","704649","Jacobs U.K.Limited","B1019000-220-002","2,772.00","Construction and Conversion","130215216","23/05/2018","-","Black Country Growth Deal � Cultural Programme","C1100"
"Wolverhampton City Council","http://opendatacommunities.org/id/metropolitan-district-council/wolverhampton","704649","Jacobs U.K.Limited","B1019000-220-010","12,178.46","Construction and Conversion","130215224","23/05/2018","-","Decent Homes - Stock Improvements","C1100"
"Wolverhampton City Council","http://opendatacommunities.org/id/metropolitan-district-council/wolverhampton","704649","Jacobs U.K.Limited","B1019000-220-009","144.48","Services - Professional Fees","130215223","23/05/2018","Corporate Asset Management","Statutory Surveys","R4400"
"Wolverhampton City Council","http://opendatacommunities.org/id/metropolitan-district-council/wolverhampton","704649","Jacobs U.K.Limited","B1019000-220-001","4,350.50","Construction and Conversion","130215215","23/05/2018","-","Black Country Growth Deal � Cultural Programme","C1100"
"Wolverhampton City Council","http://opendatacommunities.org/id/metropolitan-district-council/wolverhampton","704649","Jacobs U.K.Limited","B1019000-220-006","505.68","Services - Professional Fees","130215220","23/05/2018","Facilities Management","Civic Centre","R4400"
"Wolverhampton City Council","http://opendatacommunities.org/id/metropolitan-district-council/wolverhampton","704649","Jacobs U.K.Limited","B1019000-220-007","650.16","Services - Professional Fees","130215221","23/05/2018","Facilities Management","Civic Centre","R4400"
"Wolverhampton City Council","http://opendatacommunities.org/id/metropolitan-district-council/wolverhampton","704649","Jacobs U.K.Limited","B1019000-220-020","349.29","Construction and Conversion","130215234","23/05/2018","-","Sports Investment Strategy","C1100"
"Wolverhampton City Council","http://opendatacommunities.org/id/metropolitan-district-council/wolverhampton","704649","Jacobs U.K.Limited","B1019000-220-024","9,882.72","Services - Professional Fees","130215238","23/05/2018","Maintenance Programme","Centralised R&M","R4400"
"Wolverhampton City Council","http://opendatacommunities.org/id/metropolitan-district-council/wolverhampton","704649","Jacobs U.K.Limited","B1019000-220-023","8,236.80","Services - Professional Fees","130215237","23/05/2018","Maintenance Programme","Centralised R&M","R4400"
"Wolverhampton City Council","http://opendatacommunities.org/id/metropolitan-district-council/wolverhampton","704649","Jacobs U.K.Limited","B1019000-220-012","4,657.32","Services - Professional Fees","130215226","23/05/2018","Corporate Asset Management","Centralised Planned Maintenance","R4400"
"Wolverhampton City Council","http://opendatacommunities.org/id/metropolitan-district-council/wolverhampton","704649","Jacobs U.K.Limited","B1019000-220-005","12,147.51","Services - Professional Fees","130215219","23/05/2018","Maintenance Programme","Centralised R&M","R4400"
"Wolverhampton City Council","http://opendatacommunities.org/id/metropolitan-district-council/wolverhampton","704649","Jacobs U.K.Limited","B1019000-220-004","3,575.00","Construction and Conversion","130215218","23/05/2018","-","Black Country Growth Deal � Cultural Programme","C1100"
"Wolverhampton City Council","http://opendatacommunities.org/id/metropolitan-district-council/wolverhampton","704649","Jacobs U.K.Limited","B1019000-220-003","5,252.50","Construction and Conversion","130215217","23/05/2018","-","Black Country Growth Deal � Cultural Programme","C1100"
"Wolverhampton City Council","http://opendatacommunities.org/id/metropolitan-district-council/wolverhampton","704649","Jacobs U.K.Limited","B1019000-220-022","144.48","Construction and Conversion","130215236","23/05/2018","-","Future Spaces","C1100"
"Wolverhampton City Council","http://opendatacommunities.org/id/metropolitan-district-council/wolverhampton","704649","Jacobs U.K.Limited","B1019000-220-014","96.34","Construction and Conversion","130215228","23/05/2018","-","Decent Homes - Stock Improvements","C1100"
"Wolverhampton City Council","http://opendatacommunities.org/id/metropolitan-district-council/wolverhampton","704657","James Lister & Sons Limited","0100/02807313","29.38","Protective Clothing","130215955","23/05/2018","Environmental Maintenance","Parks - Ranger Service","R4200"
"Wolverhampton City Council","http://opendatacommunities.org/id/metropolitan-district-council/wolverhampton","704657","James Lister & Sons Limited","0100/02807316","11.88","Protective Clothing","130215958","23/05/2018","Environmental Maintenance","Parks - Ranger Service","R4200"
"Wolverhampton City Council","http://opendatacommunities.org/id/metropolitan-district-council/wolverhampton","704657","James Lister & Sons Limited","0100/02810360","30.90","Protective Clothing","130217092","30/05/2018","Transportation","Passenger Transport - General","R4200"
"Wolverhampton City Council","http://opendatacommunities.org/id/metropolitan-district-council/wolverhampton","704657","James Lister & Sons Limited","0100/02810352","15.25","Protective Clothing","130217085","30/05/2018","Older People Provider Services","Bradley Lodge Resource Centre","R4200"
"Wolverhampton City Council","http://opendatacommunities.org/id/metropolitan-district-council/wolverhampton","704657","James Lister & Sons Limited","0100/02810355","65.35","Protective Clothing","130217088","30/05/2018","Transportation","Passenger Transport - General","R4200"
"Wolverhampton City Council","http://opendatacommunities.org/id/metropolitan-district-council/wolverhampton","704657","James Lister & Sons Limited","0100/02800774","39.40","Protective Clothing","130213713","25/05/2018","Cleaning","Cleaning of Buildings - General","R4200"
"Wolverhampton City Council","http://opendatacommunities.org/id/metropolitan-district-council/wolverhampton","704657","James Lister & Sons Limited","0100/02805119","60.28","Equipment - Purchase","130215036","09/05/2018","Bereavement Services","Cemeteries","R4000"
"Wolverhampton City Council","http://opendatacommunities.org/id/metropolitan-district-council/wolverhampton","704657","James Lister & Sons Limited","0100/02803347","2,353.84","Protective Clothing","130214413","02/05/2018","Environmental Maintenance","Ground Maintenance East","R4200"
"Wolverhampton City Council","http://opendatacommunities.org/id/metropolitan-district-council/wolverhampton","704657","James Lister & Sons Limited","0100/02803351","809.75","Protective Clothing","130214417","02/05/2018","Catering","Education Catering - General Overheads","R4200"
"Wolverhampton City Council","http://opendatacommunities.org/id/metropolitan-district-council/wolverhampton","704657","James Lister & Sons Limited","0100/02807309","95.50","Protective Clothing","130215951","16/05/2018","Customer Services","City Direct","R4200"
"Wolverhampton City Council","http://opendatacommunities.org/id/metropolitan-district-council/wolverhampton","704657","James Lister & Sons Limited","0100/02807306","41.70","Protective Clothing","130215948","16/05/2018","Transportation","Passenger Transport - General","R4200"
"Wolverhampton City Council","http://opendatacommunities.org/id/metropolitan-district-council/wolverhampton","704657","James Lister & Sons Limited","0100/02805125","315.45","Protective Clothing","130215042","09/05/2018","Facilities Management","Civic Centre","R4200"
"Wolverhampton City Council","http://opendatacommunities.org/id/metropolitan-district-council/wolverhampton","704657","James Lister & Sons Limited","0100/02798503","38.53","Protective Clothing","130212631","11/05/2018","Markets","Wholesale Market Facilities Management","R4200"
"Wolverhampton City Council","http://opendatacommunities.org/id/metropolitan-district-council/wolverhampton","704657","James Lister & Sons Limited","0100/02803348","2,505.10","Protective Clothing","130214414","04/05/2018","Environmental Maintenance","Ground Maintenance East","R4200"
"Wolverhampton City Council","http://opendatacommunities.org/id/metropolitan-district-council/wolverhampton","704657","James Lister & Sons Limited","0100/02803355","33.00","Protective Clothing","130214421","02/05/2018","Highways Maintenance","Patching","R4200"
"Wolverhampton City Council","http://opendatacommunities.org/id/metropolitan-district-council/wolverhampton","704657","James Lister & Sons Limited","240/02802429","96.15","Equipment - Purchase","190455241","09/05/2018","Fleet Services","Fleet Management","R4000"
"Wolverhampton City Council","http://opendatacommunities.org/id/metropolitan-district-council/wolverhampton","704657","James Lister & Sons Limited","0100/02810354","32.50","Protective Clothing","130217087","30/05/2018","Markets","Wholesale Market Facilities Management","R4200"
"Wolverhampton City Council","http://opendatacommunities.org/id/metropolitan-district-council/wolverhampton","704657","James Lister & Sons Limited","0100/02805118","426.92","Protective Clothing","130215035","09/05/2018","Catering","Education Catering - General Overheads","R4200"
"Wolverhampton City Council","http://opendatacommunities.org/id/metropolitan-district-council/wolverhampton","704657","James Lister & Sons Limited","240-02805592","49.80","Equipment - Purchase","190461326","23/05/2018","Fleet Services","Fleet Management","R4000"
"Wolverhampton City Council","http://opendatacommunities.org/id/metropolitan-district-council/wolverhampton","704657","James Lister & Sons Limited","0100/02810359","26.64","Protective Clothing","130217091","30/05/2018","Markets","Wolverhampton Indoor and Open Market","R4200"
"Wolverhampton City Council","http://opendatacommunities.org/id/metropolitan-district-council/wolverhampton","704657","James Lister & Sons Limited","0100/02800777","49.25","Protective Clothing","130213716","25/05/2018","Cleaning","Cleaning of Buildings - General","R4200"
"Wolverhampton City Council","http://opendatacommunities.org/id/metropolitan-district-council/wolverhampton","704657","James Lister & Sons Limited","240/02804523","111.42","Equipment - Purchase","190458186","16/05/2018","Fleet Services","Fleet Management","R4000"
"Wolverhampton City Council","http://opendatacommunities.org/id/metropolitan-district-council/wolverhampton","704657","James Lister & Sons Limited","0100/02803357","519.84","Protective Clothing","130214423","02/05/2018","Environmental Maintenance","Ground Maintenance East","R4200"
"Wolverhampton City Council","http://opendatacommunities.org/id/metropolitan-district-council/wolverhampton","704657","James Lister & Sons Limited","0100/02803349","920.00","Protective Clothing","130214415","02/05/2018","Customer Services","City Direct","R4200"
"Wolverhampton City Council","http://opendatacommunities.org/id/metropolitan-district-council/wolverhampton","704657","James Lister & Sons Limited","0100/02803356","29.16","Protective Clothing","130214422","02/05/2018","Highways Maintenance","Patching","R4200"
"Wolverhampton City Council","http://opendatacommunities.org/id/metropolitan-district-council/wolverhampton","704657","James Lister & Sons Limited","0175/02803359","295.05","Protective Clothing","130214425","11/05/2018","Bereavement Services","Cemeteries","R4200"
"Wolverhampton City Council","http://opendatacommunities.org/id/metropolitan-district-council/wolverhampton","704657","James Lister & Sons Limited","0100/02807307","325.60","Protective Clothing","130215949","18/05/2018","Environmental Maintenance","Parks - Ranger Service","R4200"
"Wolverhampton City Council","http://opendatacommunities.org/id/metropolitan-district-council/wolverhampton","704657","James Lister & Sons Limited","0100/02805126","21.65","Protective Clothing","130215043","09/05/2018","Transportation","Passenger Transport - General","R4200"
"Wolverhampton City Council","http://opendatacommunities.org/id/metropolitan-district-council/wolverhampton","704657","James Lister & Sons Limited","240/02802425","40.00","Equipment - Purchase","190455237","09/05/2018","Fleet Services","Fleet Management","R4000"
"Wolverhampton City Council","http://opendatacommunities.org/id/metropolitan-district-council/wolverhampton","704657","James Lister & Sons Limited","240/02802427","95.75","Equipment - Purchase","190455239","09/05/2018","Fleet Services","Fleet Management","R4000"
"Wolverhampton City Council","http://opendatacommunities.org/id/metropolitan-district-council/wolverhampton","704657","James Lister & Sons Limited","0100/02800780","76.58","Protective Clothing","130213719","04/05/2018","Markets","Wholesale Market Facilities Management","R4200"
"Wolverhampton City Council","http://opendatacommunities.org/id/metropolitan-district-council/wolverhampton","704657","James Lister & Sons Limited","0100/02803358","1,186.32","Protective Clothing","130214424","02/05/2018","Environmental Maintenance","Ground Maintenance East","R4200"
"Wolverhampton City Council","http://opendatacommunities.org/id/metropolitan-district-council/wolverhampton","704657","James Lister & Sons Limited","240/02802428","81.31","Equipment - Purchase","190455240","09/05/2018","Fleet Services","Fleet Management","R4000"
"Wolverhampton City Council","http://opendatacommunities.org/id/metropolitan-district-council/wolverhampton","704657","James Lister & Sons Limited","0100/02810362","89.90","Equipment - Purchase","130217094","30/05/2018","Bereavement Services","Cemeteries","R4000"
"Wolverhampton City Council","http://opendatacommunities.org/id/metropolitan-district-council/wolverhampton","704657","James Lister & Sons Limited","0100/02807308","51.32","Protective Clothing","130215950","23/05/2018","Environmental Maintenance","Parks - Ranger Service","R4200"
"Wolverhampton City Council","http://opendatacommunities.org/id/metropolitan-district-council/wolverhampton","704657","James Lister & Sons Limited","0100/02810356","4.20","Protective Clothing","130217262","30/05/2018","Independent Living Service","Independent Living Service","R4200"
"Wolverhampton City Council","http://opendatacommunities.org/id/metropolitan-district-council/wolverhampton","704657","James Lister & Sons Limited","0100/02810356","15.75","Protective Clothing","130217262","30/05/2018","Independent Living Service","Independent Living Service","R4200"
"Wolverhampton City Council","http://opendatacommunities.org/id/metropolitan-district-council/wolverhampton","704657","James Lister & Sons Limited","0100/02807314","213.72","Protective Clothing","130215956","23/05/2018","Bereavement Services","Cemeteries","R4200"
"Wolverhampton City Council","http://opendatacommunities.org/id/metropolitan-district-council/wolverhampton","704657","James Lister & Sons Limited","0100/02805122","701.70","Protective Clothing","130215039","09/05/2018","Highways Maintenance","Patching","R4200"
"Wolverhampton City Council","http://opendatacommunities.org/id/metropolitan-district-council/wolverhampton","704657","James Lister & Sons Limited","0100/02810358","97.00","Protective Clothing","130217090","30/05/2018","Transportation","Passenger Transport - General","R4200"
"Wolverhampton City Council","http://opendatacommunities.org/id/metropolitan-district-council/wolverhampton","704657","James Lister & Sons Limited","0100/02803354","56.00","Protective Clothing","130214420","02/05/2018","Cleaning","Cleaning of Buildings - General","R4200"
"Wolverhampton City Council","http://opendatacommunities.org/id/metropolitan-district-council/wolverhampton","704657","James Lister & Sons Limited","0100/02807315","1,665.00","Protective Clothing","130215957","16/05/2018","Licensing","Licensing - Private Hire Vehicles","R4200"
"Wolverhampton City Council","http://opendatacommunities.org/id/metropolitan-district-council/wolverhampton","704657","James Lister & Sons Limited","240/02804524","38.80","Equipment - Purchase","190458187","16/05/2018","Fleet Services","Fleet Management","R4000"
"Wolverhampton City Council","http://opendatacommunities.org/id/metropolitan-district-council/wolverhampton","704657","James Lister & Sons Limited","0100/02807317","30.50","Protective Clothing","130215959","16/05/2018","Facilities Management","Civic Centre","R4200"
"Wolverhampton City Council","http://opendatacommunities.org/id/metropolitan-district-council/wolverhampton","704657","James Lister & Sons Limited","0100/02805121","114.00","Protective Clothing","130215038","09/05/2018","Cleaning","Cleaning of Buildings - General","R4200"
"Wolverhampton City Council","http://opendatacommunities.org/id/metropolitan-district-council/wolverhampton","704657","James Lister & Sons Limited","0100/02805123","24.60","Protective Clothing","130215040","09/05/2018","Cleaning","Cleaning of Buildings - General","R4200"
"Wolverhampton City Council","http://opendatacommunities.org/id/metropolitan-district-council/wolverhampton","704657","James Lister & Sons Limited","0175/02805128","177.09","Equipment - Purchase","130215045","11/05/2018","Bereavement Services","Cemeteries","R4000"
"Wolverhampton City Council","http://opendatacommunities.org/id/metropolitan-district-council/wolverhampton","704657","James Lister & Sons Limited","240/02802426","112.64","Equipment - Purchase","190455238","09/05/2018","Fleet Services","Fleet Management","R4000"
"Wolverhampton City Council","http://opendatacommunities.org/id/metropolitan-district-council/wolverhampton","704657","James Lister & Sons Limited","0100/02810351","15.30","Protective Clothing","130217084","30/05/2018","Special Educational Needs","Special - Transport","R4200"
"Wolverhampton City Council","http://opendatacommunities.org/id/metropolitan-district-council/wolverhampton","704657","James Lister & Sons Limited","0100/02807312","35.52","Protective Clothing","130215954","30/05/2018","Transportation","Passenger Transport - General","R4200"
"Wolverhampton City Council","http://opendatacommunities.org/id/metropolitan-district-council/wolverhampton","704657","James Lister & Sons Limited","0100/02805124","81.00","Protective Clothing","130215041","23/05/2018","Transportation","Passenger Transport - General","R4200"
"Wolverhampton City Council","http://opendatacommunities.org/id/metropolitan-district-council/wolverhampton","704657","James Lister & Sons Limited","0100/02810353","1.05","Protective Clothing","130217086","30/05/2018","Independent Living Service","Independent Living Service","R4200"
"Wolverhampton City Council","http://opendatacommunities.org/id/metropolitan-district-council/wolverhampton","704657","James Lister & Sons Limited","0100/02805127","151.55","Protective Clothing","130215044","09/05/2018","Transportation","Passenger Transport - General","R4200"
"Wolverhampton City Council","http://opendatacommunities.org/id/metropolitan-district-council/wolverhampton","704657","James Lister & Sons Limited","0100/02805117","208.11","Protective Clothing","130215034","09/05/2018","Customer Services","City Direct","R4200"
"Wolverhampton City Council","http://opendatacommunities.org/id/metropolitan-district-council/wolverhampton","704657","James Lister & Sons Limited","240/02779157","38.20","Equipment - Purchase","190458185","16/05/2018","Fleet Services","Fleet Management","R4000"
"Wolverhampton City Council","http://opendatacommunities.org/id/metropolitan-district-council/wolverhampton","704657","James Lister & Sons Limited","0100/02807310","33.60","Protective Clothing","130215952","16/05/2018","Transportation","Passenger Transport - General","R4200"
"Wolverhampton City Council","http://opendatacommunities.org/id/metropolitan-district-council/wolverhampton","704657","James Lister & Sons Limited","240/02804526","76.56","Equipment - Purchase","190458188","16/05/2018","Fleet Services","Fleet Management","R4000"
"Wolverhampton City Council","http://opendatacommunities.org/id/metropolitan-district-council/wolverhampton","704657","James Lister & Sons Limited","0100/02803350","36.00","Protective Clothing","130214416","02/05/2018","Highways Maintenance","Patching","R4200"
"Wolverhampton City Council","http://opendatacommunities.org/id/metropolitan-district-council/wolverhampton","704657","James Lister & Sons Limited","0100/02803352","161.94","Protective Clothing","130214418","02/05/2018","Environmental Maintenance","Ground Maintenance East","R4200"
"Wolverhampton City Council","http://opendatacommunities.org/id/metropolitan-district-council/wolverhampton","704657","James Lister & Sons Limited","0100/02803353","44.75","Protective Clothing","130214419","02/05/2018","Environmental Maintenance","Ground Maintenance East","R4200"
"Wolverhampton City Council","http://opendatacommunities.org/id/metropolitan-district-council/wolverhampton","704657","James Lister & Sons Limited","0100/02807311","82.50","Protective Clothing","130215953","18/05/2018","Environmental Maintenance","Parks - Ranger Service","R4200"
"Wolverhampton City Council","http://opendatacommunities.org/id/metropolitan-district-council/wolverhampton","704657","James Lister & Sons Limited","0100/02805114","28.50","Protective Clothing","130215032","09/05/2018","Cleaning","Cleaning of Buildings - General","R4200"
"Wolverhampton City Council","http://opendatacommunities.org/id/metropolitan-district-council/wolverhampton","704657","James Lister & Sons Limited","0100/02805120","89.50","Protective Clothing","130215037","09/05/2018","Environmental Maintenance","Ground Maintenance East","R4200"
"Wolverhampton City Council","http://opendatacommunities.org/id/metropolitan-district-council/wolverhampton","704657","James Lister & Sons Limited","240/02802430","39.92","Equipment - Purchase","190455242","09/05/2018","Fleet Services","Fleet Management","R4000"
"Wolverhampton City Council","http://opendatacommunities.org/id/metropolitan-district-council/wolverhampton","704657","James Lister & Sons Limited","0100/02800778","19.70","Protective Clothing","130213717","04/05/2018","Markets","Wholesale Market Facilities Management","R4200"
"Wolverhampton City Council","http://opendatacommunities.org/id/metropolitan-district-council/wolverhampton","704657","James Lister & Sons Limited","0175/02803360","27.75","Protective Clothing","130214426","02/05/2018","Bereavement Services","Cemeteries","R4200"
"Wolverhampton City Council","http://opendatacommunities.org/id/metropolitan-district-council/wolverhampton","704659","James Wilkes Limited","16/0103/DFGa","2,247.59","Grants paid out to other organisations","190457785","16/05/2018","-","Disabled Facilities Grants","C5011"
"Wolverhampton City Council","http://opendatacommunities.org/id/metropolitan-district-council/wolverhampton","704659","James Wilkes Limited","16/0279/DFG","26,320.81","Grants paid out to other organisations","190454253","04/05/2018","-","Disabled Facilities Grants","C5011"
"Wolverhampton City Council","http://opendatacommunities.org/id/metropolitan-district-council/wolverhampton","704659","James Wilkes Limited","5632","34,750.00","Construction and Conversion","130215239","09/05/2018","-","Capital Maintenance - Electrical Works","C1100"
"Wolverhampton City Council","http://opendatacommunities.org/id/metropolitan-district-council/wolverhampton","704675","JCDECAUX UK Limited","SF/I087931","385.00","Marketing \ Non-staff advertising","130212376","02/05/2018","Leisure Services","WV Active Marketing","R4317"
"Wolverhampton City Council","http://opendatacommunities.org/id/metropolitan-district-council/wolverhampton","704690","Jenx Limited","211236","1,824.90","Equipment - Purchase","130212939","02/05/2018","Independent Living Service","Independent Living Service","R4000"
"Wolverhampton City Council","http://opendatacommunities.org/id/metropolitan-district-council/wolverhampton","704703","Jim�S Transfleet","300418A","861.72","Client Transport","130214755","09/05/2018","Special Educational Needs","Special - Transport","R3042"
"Wolverhampton City Council","http://opendatacommunities.org/id/metropolitan-district-council/wolverhampton","704703","Jim�S Transfleet","300418","840.80","Client Transport","130214754","09/05/2018","Special Educational Needs","Special - Transport","R3042"
"Wolverhampton City Council","http://opendatacommunities.org/id/metropolitan-district-council/wolverhampton","704706","JLA Limited","OP/I162549","140.00","Service Charges","130214132","09/05/2018","Learning Disability Provider","Ernest Bold Court","R2205"
"Wolverhampton City Council","http://opendatacommunities.org/id/metropolitan-district-council/wolverhampton","704722","Johal Dairies Limited","1112588","34.71","Provisions (Not for resale)","130215065","23/05/2018","Learning Disability Provider","Duke Street Bungalows","R4101"
"Wolverhampton City Council","http://opendatacommunities.org/id/metropolitan-district-council/wolverhampton","704722","Johal Dairies Limited","1112586","20.28","Provisions (Not for resale)","130215063","23/05/2018","Learning Disability Provider","Duke Street Bungalows","R4101"
"Wolverhampton City Council","http://opendatacommunities.org/id/metropolitan-district-council/wolverhampton","704722","Johal Dairies Limited","1112572","129.38","Provisions (Not for resale)","130215061","23/05/2018","Older People Provider Services","Bradley Lodge Resource Centre","R4101"
"Wolverhampton City Council","http://opendatacommunities.org/id/metropolitan-district-council/wolverhampton","704722","Johal Dairies Limited","5466042018","275.83","Provisions (Not for resale)","130215960","23/05/2018","Leisure Services","WV Active Catering","R4101"
"Wolverhampton City Council","http://opendatacommunities.org/id/metropolitan-district-council/wolverhampton","704722","Johal Dairies Limited","1104849","34.71","Provisions (Not for resale)","130215052","09/05/2018","Learning Disability Provider","Duke Street Bungalows","R4101"
"Wolverhampton City Council","http://opendatacommunities.org/id/metropolitan-district-council/wolverhampton","704722","Johal Dairies Limited","1108516","36.77","Provisions (Not for resale)","130215060","16/05/2018","Adult Education","Caf�","R4101"
"Wolverhampton City Council","http://opendatacommunities.org/id/metropolitan-district-council/wolverhampton","704722","Johal Dairies Limited","1108457","20.28","Provisions (Not for resale)","130215056","16/05/2018","Learning Disability Provider","Duke Street Bungalows","R4101"
"Wolverhampton City Council","http://opendatacommunities.org/id/metropolitan-district-council/wolverhampton","704722","Johal Dairies Limited","W1/3032018","30,768.73","School Milk","130214756","02/05/2018","Catering","Education Catering - General Overheads","R4104"
"Wolverhampton City Council","http://opendatacommunities.org/id/metropolitan-district-council/wolverhampton","704722","Johal Dairies Limited","1104850","11.52","Provisions (Resale)","130215053","11/05/2018","Older People Provider Services","Blakenhall Resource Centre","R4102"
"Wolverhampton City Council","http://opendatacommunities.org/id/metropolitan-district-council/wolverhampton","704722","Johal Dairies Limited","5466032018","494.60","Provisions (Not for resale)","130215068","04/05/2018","Leisure Services","WV Active Catering","R4101"
"Wolverhampton City Council","http://opendatacommunities.org/id/metropolitan-district-council/wolverhampton","704722","Johal Dairies Limited","1102307","125.13","Provisions (Not for resale)","130214926","04/05/2018","Older People Provider Services","Bradley Lodge Resource Centre","R4101"
"Wolverhampton City Council","http://opendatacommunities.org/id/metropolitan-district-council/wolverhampton","704722","Johal Dairies Limited","1104848","25.57","Provisions (Not for resale)","130215051","09/05/2018","Learning Disability Provider","Duke Street Bungalows","R4101"
"Wolverhampton City Council","http://opendatacommunities.org/id/metropolitan-district-council/wolverhampton","704722","Johal Dairies Limited","1104845","112.68","Provisions (Not for resale)","130215049","09/05/2018","Visitor Economy","Bantock - Tea Rooms","R4101"
"Wolverhampton City Council","http://opendatacommunities.org/id/metropolitan-district-council/wolverhampton","704722","Johal Dairies Limited","1104841","114.12","Provisions (Not for resale)","130215048","23/05/2018","Older People Provider Services","Bradley Lodge Resource Centre","R4101"
"Wolverhampton City Council","http://opendatacommunities.org/id/metropolitan-district-council/wolverhampton","704722","Johal Dairies Limited","1108443","121.69","Provisions (Not for resale)","130215054","23/05/2018","Older People Provider Services","Bradley Lodge Resource Centre","R4101"
"Wolverhampton City Council","http://opendatacommunities.org/id/metropolitan-district-council/wolverhampton","704722","Johal Dairies Limited","1112584","105.14","Provisions (Not for resale)","130215062","23/05/2018","Visitor Economy","Bantock - Tea Rooms","R4101"
"Wolverhampton City Council","http://opendatacommunities.org/id/metropolitan-district-council/wolverhampton","704722","Johal Dairies Limited","1112587","25.57","Provisions (Not for resale)","130215064","23/05/2018","Learning Disability Provider","Duke Street Bungalows","R4101"
"Wolverhampton City Council","http://opendatacommunities.org/id/metropolitan-district-council/wolverhampton","704722","Johal Dairies Limited","WKIT042018","4,906.42","Provisions (Resale)","130216926","25/05/2018","Catering","Education Catering - General Overheads","R4102"
"Wolverhampton City Council","http://opendatacommunities.org/id/metropolitan-district-council/wolverhampton","704722","Johal Dairies Limited","6525032018","152.95","Provisions (Not for resale)","130215070","16/05/2018","Leisure Services","WV Active Catering - Central","R4101"
"Wolverhampton City Council","http://opendatacommunities.org/id/metropolitan-district-council/wolverhampton","704722","Johal Dairies Limited","1102313","19.53","Provisions (Not for resale)","130214928","04/05/2018","Learning Disability Provider","Duke Street Bungalows","R4101"
"Wolverhampton City Council","http://opendatacommunities.org/id/metropolitan-district-council/wolverhampton","704722","Johal Dairies Limited","W1/3042018","9,235.74","School Milk","130217347","25/05/2018","Catering","Education Catering - General Overheads","R4104"
"Wolverhampton City Council","http://opendatacommunities.org/id/metropolitan-district-council/wolverhampton","704722","Johal Dairies Limited","5935042018","294.61","Provisions (Not for resale)","130215961","23/05/2018","Leisure Services","Bert Williams Leisure Centre Caf�","R4101"
"Wolverhampton City Council","http://opendatacommunities.org/id/metropolitan-district-council/wolverhampton","704722","Johal Dairies Limited","6525042018","99.75","Provisions (Not for resale)","130215962","23/05/2018","Leisure Services","WV Active Catering - Central","R4101"
"Wolverhampton City Council","http://opendatacommunities.org/id/metropolitan-district-council/wolverhampton","704722","Johal Dairies Limited","1102311","110.98","Provisions (Not for resale)","130214927","09/05/2018","Visitor Economy","Bantock - Tea Rooms","R4101"
"Wolverhampton City Council","http://opendatacommunities.org/id/metropolitan-district-council/wolverhampton","704722","Johal Dairies Limited","1112640","30.87","Provisions (Resale)","130215066","23/05/2018","Older People Provider Services","Blakenhall Resource Centre","R4102"
"Wolverhampton City Council","http://opendatacommunities.org/id/metropolitan-district-council/wolverhampton","704722","Johal Dairies Limited","1108458","25.57","Provisions (Not for resale)","130215057","16/05/2018","Learning Disability Provider","Duke Street Bungalows","R4101"
"Wolverhampton City Council","http://opendatacommunities.org/id/metropolitan-district-council/wolverhampton","704722","Johal Dairies Limited","1108459","34.71","Provisions (Not for resale)","130215058","16/05/2018","Learning Disability Provider","Duke Street Bungalows","R4101"
"Wolverhampton City Council","http://opendatacommunities.org/id/metropolitan-district-council/wolverhampton","704722","Johal Dairies Limited","1102315","34.71","Provisions (Not for resale)","130215046","04/05/2018","Learning Disability Provider","Duke Street Bungalows","R4101"
"Wolverhampton City Council","http://opendatacommunities.org/id/metropolitan-district-council/wolverhampton","704722","Johal Dairies Limited","1102316","23.28","Provisions (Resale)","130215047","11/05/2018","Older People Provider Services","Blakenhall Resource Centre","R4102"
"Wolverhampton City Council","http://opendatacommunities.org/id/metropolitan-district-council/wolverhampton","704722","Johal Dairies Limited","5935032018","362.51","Provisions (Not for resale)","130215069","04/05/2018","Leisure Services","Bert Williams Leisure Centre Caf�","R4101"
"Wolverhampton City Council","http://opendatacommunities.org/id/metropolitan-district-council/wolverhampton","704722","Johal Dairies Limited","1102314","24.82","Provisions (Not for resale)","130214929","04/05/2018","Learning Disability Provider","Duke Street Bungalows","R4101"
"Wolverhampton City Council","http://opendatacommunities.org/id/metropolitan-district-council/wolverhampton","704722","Johal Dairies Limited","1108455","110.24","Provisions (Not for resale)","130215055","16/05/2018","Visitor Economy","Bantock - Tea Rooms","R4101"
"Wolverhampton City Council","http://opendatacommunities.org/id/metropolitan-district-council/wolverhampton","704722","Johal Dairies Limited","1108511","37.05","Provisions (Resale)","130215059","16/05/2018","Older People Provider Services","Blakenhall Resource Centre","R4102"
"Wolverhampton City Council","http://opendatacommunities.org/id/metropolitan-district-council/wolverhampton","704722","Johal Dairies Limited","5620042018","784.82","Provisions (Resale)","130216925","25/05/2018","Catering","Civic Centre Catering","R4102"
"Wolverhampton City Council","http://opendatacommunities.org/id/metropolitan-district-council/wolverhampton","704722","Johal Dairies Limited","1104847","20.28","Provisions (Not for resale)","130215050","09/05/2018","Learning Disability Provider","Duke Street Bungalows","R4101"
"Wolverhampton City Council","http://opendatacommunities.org/id/metropolitan-district-council/wolverhampton","704722","Johal Dairies Limited","1112645","33.16","Provisions (Not for resale)","130215067","23/05/2018","Adult Education","Caf�","R4101"
"Wolverhampton City Council","http://opendatacommunities.org/id/metropolitan-district-council/wolverhampton","704722","Johal Dairies Limited","WKIT032018","10,405.55","Provisions (Resale)","130214257","02/05/2018","Catering","Education Catering - General Overheads","R4102"
"Wolverhampton City Council","http://opendatacommunities.org/id/metropolitan-district-council/wolverhampton","704731","John Knight Interiors","13404WC008","4,767.10","Equipment - Purchase","130210002","02/05/2018","Early Intervention","EIP Locality 7 � Low Hill","R4000"
"Wolverhampton City Council","http://opendatacommunities.org/id/metropolitan-district-council/wolverhampton","704736","John Packer Limited","132281","315.00","Equipment - Purchase","130214757","09/05/2018","School Planning & Resources","Music Support Team","R4000"
"Wolverhampton City Council","http://opendatacommunities.org/id/metropolitan-district-council/wolverhampton","704736","John Packer Limited","132463","335.00","Equipment - Purchase","130215701","16/05/2018","School Planning & Resources","Music Support Team","R4000"
"Wolverhampton City Council","http://opendatacommunities.org/id/metropolitan-district-council/wolverhampton","704748","Johnston Sweepers Limited","61613835","52.62","Equipment - Purchase","190461331","23/05/2018","Fleet Services","Fleet Management","R4000"
"Wolverhampton City Council","http://opendatacommunities.org/id/metropolitan-district-council/wolverhampton","704748","Johnston Sweepers Limited","61616842","250.34","Equipment - Purchase","190462861","25/05/2018","Fleet Services","Fleet Management","R4000"
"Wolverhampton City Council","http://opendatacommunities.org/id/metropolitan-district-council/wolverhampton","704748","Johnston Sweepers Limited","61615519","1,009.50","Equipment - Purchase","190458192","16/05/2018","Fleet Services","Fleet Management","R4000"
"Wolverhampton City Council","http://opendatacommunities.org/id/metropolitan-district-council/wolverhampton","704748","Johnston Sweepers Limited","61620228","324.12","Equipment - Purchase","190462863","25/05/2018","Fleet Services","Fleet Management","R4000"
"Wolverhampton City Council","http://opendatacommunities.org/id/metropolitan-district-council/wolverhampton","704748","Johnston Sweepers Limited","65284974","60.00","Services - Professional Fees","190461335","23/05/2018","Fleet Services","Fleet Management","R4400"
"Wolverhampton City Council","http://opendatacommunities.org/id/metropolitan-district-council/wolverhampton","704748","Johnston Sweepers Limited","65284974","142.00","Services - Professional Fees","190461335","23/05/2018","Fleet Services","Fleet Management","R4400"
"Wolverhampton City Council","http://opendatacommunities.org/id/metropolitan-district-council/wolverhampton","704748","Johnston Sweepers Limited","65284974","16.89","Services - Professional Fees","190461335","23/05/2018","Fleet Services","Fleet Management","R4400"
"Wolverhampton City Council","http://opendatacommunities.org/id/metropolitan-district-council/wolverhampton","704748","Johnston Sweepers Limited","65284974","3.00","Services - Professional Fees","190461335","23/05/2018","Fleet Services","Fleet Management","R4400"
"Wolverhampton City Council","http://opendatacommunities.org/id/metropolitan-district-council/wolverhampton","704748","Johnston Sweepers Limited","61612196","2.18","Equipment - Purchase","190455258","09/05/2018","Fleet Services","Fleet Management","R4000"
"Wolverhampton City Council","http://opendatacommunities.org/id/metropolitan-district-council/wolverhampton","704748","Johnston Sweepers Limited","61612196","37.84","Equipment - Purchase","190455258","09/05/2018","Fleet Services","Fleet Management","R4000"
"Wolverhampton City Council","http://opendatacommunities.org/id/metropolitan-district-council/wolverhampton","704748","Johnston Sweepers Limited","61612196","28.28","Equipment - Purchase","190455258","09/05/2018","Fleet Services","Fleet Management","R4000"
"Wolverhampton City Council","http://opendatacommunities.org/id/metropolitan-district-council/wolverhampton","704748","Johnston Sweepers Limited","61612196","274.63","Equipment - Purchase","190455258","09/05/2018","Fleet Services","Fleet Management","R4000"
"Wolverhampton City Council","http://opendatacommunities.org/id/metropolitan-district-council/wolverhampton","704748","Johnston Sweepers Limited","61612195","108.04","Equipment - Purchase","190458190","16/05/2018","Fleet Services","Fleet Management","R4000"
"Wolverhampton City Council","http://opendatacommunities.org/id/metropolitan-district-council/wolverhampton","704748","Johnston Sweepers Limited","61612197","9.72","Equipment - Purchase","190458191","16/05/2018","Fleet Services","Fleet Management","R4000"
"Wolverhampton City Council","http://opendatacommunities.org/id/metropolitan-district-council/wolverhampton","704748","Johnston Sweepers Limited","61617781","43.32","Equipment - Purchase","190461333","23/05/2018","Fleet Services","Fleet Management","R4000"
"Wolverhampton City Council","http://opendatacommunities.org/id/metropolitan-district-council/wolverhampton","704748","Johnston Sweepers Limited","61618131","6.69","Equipment - Purchase","190461334","23/05/2018","Fleet Services","Fleet Management","R4000"
"Wolverhampton City Council","http://opendatacommunities.org/id/metropolitan-district-council/wolverhampton","704748","Johnston Sweepers Limited","61618131","95.92","Equipment - Purchase","190461334","23/05/2018","Fleet Services","Fleet Management","R4000"
"Wolverhampton City Council","http://opendatacommunities.org/id/metropolitan-district-council/wolverhampton","704748","Johnston Sweepers Limited","61609052","19.50","Equipment - Purchase","190455256","09/05/2018","Fleet Services","Fleet Management","R4000"
"Wolverhampton City Council","http://opendatacommunities.org/id/metropolitan-district-council/wolverhampton","704748","Johnston Sweepers Limited","61614927","167.71","Equipment - Purchase","190462859","25/05/2018","Fleet Services","Fleet Management","R4000"
"Wolverhampton City Council","http://opendatacommunities.org/id/metropolitan-district-council/wolverhampton","704748","Johnston Sweepers Limited","61619095","46.40","Equipment - Purchase","190462862","25/05/2018","Fleet Services","Fleet Management","R4000"
"Wolverhampton City Council","http://opendatacommunities.org/id/metropolitan-district-council/wolverhampton","704748","Johnston Sweepers Limited","61615521","221.52","Equipment - Purchase","190458194","16/05/2018","Fleet Services","Fleet Management","R4000"
"Wolverhampton City Council","http://opendatacommunities.org/id/metropolitan-district-council/wolverhampton","704748","Johnston Sweepers Limited","61615521","247.92","Equipment - Purchase","190458194","16/05/2018","Fleet Services","Fleet Management","R4000"
"Wolverhampton City Council","http://opendatacommunities.org/id/metropolitan-district-council/wolverhampton","704748","Johnston Sweepers Limited","65284975","60.00","Services - Professional Fees","190461336","23/05/2018","Fleet Services","Fleet Management","R4400"
"Wolverhampton City Council","http://opendatacommunities.org/id/metropolitan-district-council/wolverhampton","704748","Johnston Sweepers Limited","65284975","30.00","Services - Professional Fees","190461336","23/05/2018","Fleet Services","Fleet Management","R4400"
"Wolverhampton City Council","http://opendatacommunities.org/id/metropolitan-district-council/wolverhampton","704748","Johnston Sweepers Limited","61610347","53.75","Equipment - Purchase","190455257","09/05/2018","Fleet Services","Fleet Management","R4000"
"Wolverhampton City Council","http://opendatacommunities.org/id/metropolitan-district-council/wolverhampton","704748","Johnston Sweepers Limited","61617321","11.39","Equipment - Purchase","190461332","23/05/2018","Fleet Services","Fleet Management","R4000"
"Wolverhampton City Council","http://opendatacommunities.org/id/metropolitan-district-council/wolverhampton","704748","Johnston Sweepers Limited","61617321","70.96","Equipment - Purchase","190461332","23/05/2018","Fleet Services","Fleet Management","R4000"
"Wolverhampton City Council","http://opendatacommunities.org/id/metropolitan-district-council/wolverhampton","704748","Johnston Sweepers Limited","65284975","16.89","Services - Professional Fees","190461336","23/05/2018","Fleet Services","Fleet Management","R4400"
"Wolverhampton City Council","http://opendatacommunities.org/id/metropolitan-district-council/wolverhampton","704748","Johnston Sweepers Limited","65284975","3.00","Services - Professional Fees","190461336","23/05/2018","Fleet Services","Fleet Management","R4400"
"Wolverhampton City Council","http://opendatacommunities.org/id/metropolitan-district-council/wolverhampton","704748","Johnston Sweepers Limited","61616014","23.24","Equipment - Purchase","190462860","25/05/2018","Fleet Services","Fleet Management","R4000"
"Wolverhampton City Council","http://opendatacommunities.org/id/metropolitan-district-council/wolverhampton","704748","Johnston Sweepers Limited","61616014","5.64","Equipment - Purchase","190462860","25/05/2018","Fleet Services","Fleet Management","R4000"
"Wolverhampton City Council","http://opendatacommunities.org/id/metropolitan-district-council/wolverhampton","704748","Johnston Sweepers Limited","61615520","41.96","Equipment - Purchase","190458193","16/05/2018","Fleet Services","Fleet Management","R4000"
"Wolverhampton City Council","http://opendatacommunities.org/id/metropolitan-district-council/wolverhampton","704754","Jones Skips (Wolverhampton) Limited","48416","-209.52","TPP - Waste Disposal","130216108","16/05/2018","Environmental Maintenance","Ground Maintenance East","R5003"
"Wolverhampton City Council","http://opendatacommunities.org/id/metropolitan-district-council/wolverhampton","704754","Jones Skips (Wolverhampton) Limited","47315","211.90","TPP - Waste Disposal","130214624","04/05/2018","Early Intervention","EIP Locality 1 - Eastfields","R5003"
"Wolverhampton City Council","http://opendatacommunities.org/id/metropolitan-district-council/wolverhampton","704754","Jones Skips (Wolverhampton) Limited","48521","156.90","Refuse Collection","130216692","23/05/2018","Child Protection","CIN/CP Social Work Unit - Area 3","R2704"
"Wolverhampton City Council","http://opendatacommunities.org/id/metropolitan-district-council/wolverhampton","704754","Jones Skips (Wolverhampton) Limited","47565","4,581.36","TPP - Waste Disposal","130216107","16/05/2018","Environmental Maintenance","Ground Maintenance East","R5003"
"Wolverhampton City Council","http://opendatacommunities.org/id/metropolitan-district-council/wolverhampton","704754","Jones Skips (Wolverhampton) Limited","47245","175.00","TPP - Waste Disposal","130213828","02/05/2018","Early Intervention","EIP Locality 2 � Bilston/Rocket Pool","R5003"
"Wolverhampton City Council","http://opendatacommunities.org/id/metropolitan-district-council/wolverhampton","704756","Jones Transmissions","6399","60.00","Services - Professional Fees","190462864","25/05/2018","Fleet Services","Fleet Management","R4400"
"Wolverhampton City Council","http://opendatacommunities.org/id/metropolitan-district-council/wolverhampton","704756","Jones Transmissions","6399","240.00","Services - Professional Fees","190462864","25/05/2018","Fleet Services","Fleet Management","R4400"
"Wolverhampton City Council","http://opendatacommunities.org/id/metropolitan-district-council/wolverhampton","704756","Jones Transmissions","6399","170.00","Services - Professional Fees","190462864","25/05/2018","Fleet Services","Fleet Management","R4400"
"Wolverhampton City Council","http://opendatacommunities.org/id/metropolitan-district-council/wolverhampton","704756","Jones Transmissions","6399","15.00","Services - Professional Fees","190462864","25/05/2018","Fleet Services","Fleet Management","R4400"
"Wolverhampton City Council","http://opendatacommunities.org/id/metropolitan-district-council/wolverhampton","704756","Jones Transmissions","6399","220.00","Services - Professional Fees","190462864","25/05/2018","Fleet Services","Fleet Management","R4400"
"Wolverhampton City Council","http://opendatacommunities.org/id/metropolitan-district-council/wolverhampton","704756","Jones Transmissions","6392","15.00","Services - Professional Fees","190456508","11/05/2018","Fleet Services","Fleet Management","R4400"
"Wolverhampton City Council","http://opendatacommunities.org/id/metropolitan-district-council/wolverhampton","704756","Jones Transmissions","6392","59.50","Services - Professional Fees","190456508","11/05/2018","Fleet Services","Fleet Management","R4400"
"Wolverhampton City Council","http://opendatacommunities.org/id/metropolitan-district-council/wolverhampton","704756","Jones Transmissions","6392","170.00","Services - Professional Fees","190456508","11/05/2018","Fleet Services","Fleet Management","R4400"
"Wolverhampton City Council","http://opendatacommunities.org/id/metropolitan-district-council/wolverhampton","704756","Jones Transmissions","6392","240.00","Services - Professional Fees","190456508","11/05/2018","Fleet Services","Fleet Management","R4400"
